{"text_format":"1","workbook":"xlsx","n_sheets":11,"sheets":["Instructions","Identification","Saisie des données","Utilisation du sol","Types d'aménagement","Classes d'aménagement","Dégradation du rivage","Classes de dégradation","Options","Log","4GIS"],"not_rendered":{"charts":8,"images":6,"macros":1,"external_links":0,"defined_names":8,"comments":3,"pivot_tables":0},"unopened":[],"bounds":{"document_bytes":16777216,"sheet_cells":100000,"rows_first":2000,"rows_last":500,"rows_between":2000,"halvings":0,"cell_chars":16384,"cell_head_chars":4096},"cells_cut":0,"cells_raw":0,"read":"whole","date_system":"1900"}

{"sheet":"Instructions","index":0,"n_rows":25,"n_cols":4,"rows_kept":25,"cut":false,"hidden":false,"merged":[[21,2,23,7],[24,2,24,7],[1,3,1,6],[2,3,2,6],[3,3,3,6],[6,2,13,7]]}
[]
[null,null,null,"Caractérisation de la bande riveraine"]
[null,null,null,"Outil de compilation des données et de présentation des résultats"]
[null,null,null,"Guide d'utilisation"]
[]
[]
[null,null,"Le guide d'utilisation est disponible en format Adobe Reader. Double cliquez sur l'icône ci-dessous pour ouvrir le document et, s'il y a lieu, l'imprimer. Le document ne s'ouvrira que si vous avez l'application d'installée sur votre ordinateur. Au besoin, vous pouvez la télécharger en cliquant sur l'icône «Get ADOBE® READER». Vous devez bien sûr avoir un accès à Internet."]
[]
[]
[]
[]
[]
[]
[]
[]
[]
[]
[]
[]
[]
[]
[null,null,"L'outil de compilation est évolutif.  Il sera bonifié, entre autres, selon les commentaires formulés par les utilisateurs.  Pour vous assurer d'utiliser la version la plus récente, nous vous recommandons de la télécharger à partir de cette adresse:"]
[]
[]
[null,null,"http://www.environnement.gouv.qc.ca/eau/flrivlac/bandes-riv.htm"]

{"sheet":"Identification","index":1,"n_rows":60,"n_cols":5,"rows_kept":60,"cut":false,"hidden":false,"merged":[[2,0,2,255],[3,0,3,255],[4,0,4,255],[7,2,7,5],[11,2,11,5],[26,2,26,5],[28,2,28,5],[27,2,27,5],[12,2,12,5],[13,2,13,5],[15,2,15,5],[14,2,14,5],[20,2,20,5],[25,2,25,5],[23,2,23,5],[24,2,24,5],[22,2,22,5],[21,2,21,5],[19,2,19,5],[16,2,16,5],[17,2,17,5],[42,2,42,5],[35,2,35,5],[37,2,37,5],[62,3,62,5],[48,2,48,5],[43,2,43,5],[44,2,44,5],[45,2,45,5],[46,2,46,5],[61,3,61,5],[38,2,38,5],[40,2,40,5],[41,2,41,5],[63,3,63,5],[64,3,64,5],[30,2,30,5],[29,2,29,5],[74,3,74,5],[66,3,66,5],[67,3,67,5],[65,3,65,5],[68,3,68,5],[56,2,56,5],[47,2,47,5],[54,2,54,5],[55,2,55,5],[49,2,49,5],[50,2,50,5],[51,2,51,5],[18,2,18,5],[39,2,39,5],[79,3,79,5],[71,3,71,5],[69,3,69,5],[70,3,70,5],[52,2,52,5],[53,2,53,5],[77,3,77,5],[78,3,78,5],[75,3,75,5],[76,3,76,5],[59,3,59,5],[60,3,60,5],[72,3,72,5],[73,3,73,5]]}
[]
[]
["Caractérisation de la bande riveraine"]
["Outil de compilation des données et de présentation des résultats"]
["Identification"]
[]
[]
[null,"Nom du lac:"]
[]
[null,"Numéro RSVL:",null,null,"Numéro du lac:"]
[]
[null,"Municipalité(s):"]
[]
[]
[]
[]
[]
[]
[]
[]
[]
[]
[]
[]
[]
[]
[]
[]
[]
[]
[]
[]
[null,"Coordonnées centroïdes","Latitude:",null,"Longitude:"]
[]
[]
[null,"Nom de l'association:"]
[]
[null,"Nom des participants:"]
[]
[]
[]
[]
[]
[]
[]
[]
[]
[]
[]
[]
[]
[]
[]
[]
[]
[]
[]
[]
[]
[null,"Étapes de réalisation:","Date","Commentaires"]

{"sheet":"Saisie des données","index":2,"n_rows":237,"n_cols":24,"rows_kept":237,"cut":false,"hidden":true,"merged":[[1,2,1,5],[6,20,7,20],[6,3,6,4],[3,0,3,1],[6,15,6,17],[6,18,6,19],[6,5,6,7],[6,8,6,9]]}
[]
[null,{"$f":"IF(Identification!F10<>\"\",Identification!F10,\"\")","v":""},{"$f":"Identification!C8","v":0},null,null,null,{"$f":"IF(Identification!C10<>\"9999\",\"RSVL \" &Identification!C10,\"\")","v":"RSVL "}]
[]
["Secteur:",null,"Un seul"]
[]
[]
[null,null,null,"Coordonnées (NAD83)",null,"Types d'aménagement (%)",null,null,"Dégradation rive (%)",null,null,null,null,null,null,"Types d'aménagement (m)",null,null,"Dégradation rive (m)",null,"Distance linéaire avec zone suivante (m)"]
["# Zone homogène","Catégorie d'utilisation","Longueur de la zone (m)","Latitude","Longitude","Végétation naturelle","Végétation ornementale","Matériaux inertes","Sol dénudé et érosion","Muret et remblais","Observateur","Date","Commentaires","Photos",null,"Végétation naturelle","Végétation ornementale","Matériaux inertes","Sol dénudé et érosion","Muret et remblais",null,"% Non dégradé","Choix de cat. d'utilisation","Choix d'observateurs"]
[{"$f":"IF($C$4<>\"Un seul\",$C$4&\"-\"&ROW()-8,ROW()-8)","v":1},null,null,null,null,null,null,null,null,null,null,null,null,null,null,{"$f":"F9*C9/100","v":0},{"$f":"G9*C9/100","v":0},{"$f":"H9*C9/100","v":0},{"$f":"I9*C9/100","v":0},{"$f":"J9*C9/100","v":0},{"$f":"IF(AND(D9<>\"\",E9<>\"\",D10<>\"\",E10<>\"\"),ACOS(COS(RADIANS(D9))*COS(RADIANS(E9))*COS(RADIANS(D10))*COS(RADIANS(E10)) + COS(RADIANS(D9))*SIN(RADIANS(E9))*COS(RADIANS(D10))*SIN(RADIANS(E10)) + SIN(RADIANS(D9))*SIN(RADIANS(D10)))*6378137,\"\")","v":""},{"$f":"IF(C9>0,1-(S9+T9)/C9,\"\")","v":""},"Naturelle",{"$f":"IF(Identification!C38<>\"\",Identification!C38,\"\")","v":""}]
[{"$f":"IF($C$4<>\"Un seul\",$C$4&\"-\"&ROW()-8,ROW()-8)","v":2},null,null,null,null,null,null,null,null,null,null,null,null,null,null,{"$f":"F10*C10/100","v":0},{"$f":"G10*C10/100","v":0},{"$f":"H10*C10/100","v":0},{"$f":"I10*C10/100","v":0},{"$f":"J10*C10/100","v":0},{"$f":"IF(AND(D10<>\"\",E10<>\"\",D11<>\"\",E11<>\"\"),ACOS(COS(RADIANS(D10))*COS(RADIANS(E10))*COS(RADIANS(D11))*COS(RADIANS(E11)) + COS(RADIANS(D10))*SIN(RADIANS(E10))*COS(RADIANS(D11))*SIN(RADIANS(E11)) + SIN(RADIANS(D10))*SIN(RADIANS(D11)))*6378137,IF(AND(D10<>\"\",E10<>\"\",D11=\"\",E11=\"\"),ACOS(COS(RADIANS(D10))*COS(RADIANS(E10))*COS(RADIANS(D9))*COS(RADIANS(E9)) + COS(RADIANS(D10))*SIN(RADIANS(E10))*COS(RADIANS(D9))*SIN(RADIANS(E9)) + SIN(RADIANS(D10))*SIN(RADIANS(D9)))*6378137,\"\"))","v":""},{"$f":"IF(C10>0,1-(S10+T10)/C10,\"\")","v":""},"Habitée",{"$f":"IF(Identification!C39<>\"\",Identification!C39,\"\")","v":""}]
[3,null,null,null,null,null,null,null,null,null,null,null,null,null,null,0,0,0,0,0,{"$f":"IF(AND(D11<>\"\",E11<>\"\",D12<>\"\",E12<>\"\"),ACOS(COS(RADIANS(D11))*COS(RADIANS(E11))*COS(RADIANS(D12))*COS(RADIANS(E12)) + COS(RADIANS(D11))*SIN(RADIANS(E11))*COS(RADIANS(D12))*SIN(RADIANS(E12)) + SIN(RADIANS(D11))*SIN(RADIANS(D12)))*6378137,IF(AND(D11<>\"\",E11<>\"\",D12=\"\",E12=\"\"),ACOS(COS(RADIANS(D11))*COS(RADIANS(E11))*COS(RADIANS(D10))*COS(RADIANS(E10)) + COS(RADIANS(D11))*SIN(RADIANS(E11))*COS(RADIANS(D10))*SIN(RADIANS(E10)) + SIN(RADIANS(D11))*SIN(RADIANS(D10)))*6378137,\"\"))","v":""},"","Infrastructures",{"$f":"IF(Identification!C40<>\"\",Identification!C40,\"\")","v":""}]
[4,null,null,null,null,null,null,null,null,null,null,null,null,null,null,0,0,0,0,0,{"$f":"IF(AND(D12<>\"\",E12<>\"\",D13<>\"\",E13<>\"\"),ACOS(COS(RADIANS(D12))*COS(RADIANS(E12))*COS(RADIANS(D13))*COS(RADIANS(E13)) + COS(RADIANS(D12))*SIN(RADIANS(E12))*COS(RADIANS(D13))*SIN(RADIANS(E13)) + SIN(RADIANS(D12))*SIN(RADIANS(D13)))*6378137,IF(AND(D12<>\"\",E12<>\"\",D13=\"\",E13=\"\"),ACOS(COS(RADIANS(D12))*COS(RADIANS(E12))*COS(RADIANS(D11))*COS(RADIANS(E11)) + COS(RADIANS(D12))*SIN(RADIANS(E12))*COS(RADIANS(D11))*SIN(RADIANS(E11)) + SIN(RADIANS(D12))*SIN(RADIANS(D11)))*6378137,\"\"))","v":""},"","Agriculture",{"$f":"IF(Identification!C41<>\"\",Identification!C41,\"\")","v":""}]
[5,null,null,null,null,null,null,null,null,null,null,null,null,null,null,0,0,0,0,0,{"$f":"IF(AND(D13<>\"\",E13<>\"\",D14<>\"\",E14<>\"\"),ACOS(COS(RADIANS(D13))*COS(RADIANS(E13))*COS(RADIANS(D14))*COS(RADIANS(E14)) + COS(RADIANS(D13))*SIN(RADIANS(E13))*COS(RADIANS(D14))*SIN(RADIANS(E14)) + SIN(RADIANS(D13))*SIN(RADIANS(D14)))*6378137,IF(AND(D13<>\"\",E13<>\"\",D14=\"\",E14=\"\"),ACOS(COS(RADIANS(D13))*COS(RADIANS(E13))*COS(RADIANS(D$9))*COS(RADIANS(E$9)) + COS(RADIANS(D13))*SIN(RADIANS(E13))*COS(RADIANS(D$9))*SIN(RADIANS(E$9)) + SIN(RADIANS(D13))*SIN(RADIANS(D$9)))*6378137,\"\"))","v":""},"","Foresterie",{"$f":"IF(Identification!C42<>\"\",Identification!C42,\"\")","v":""}]
[6,null,null,null,null,null,null,null,null,null,null,null,null,null,null,0,0,0,0,0,{"$f":"IF(AND(D14<>\"\",E14<>\"\",D15<>\"\",E15<>\"\"),ACOS(COS(RADIANS(D14))*COS(RADIANS(E14))*COS(RADIANS(D15))*COS(RADIANS(E15)) + COS(RADIANS(D14))*SIN(RADIANS(E14))*COS(RADIANS(D15))*SIN(RADIANS(E15)) + SIN(RADIANS(D14))*SIN(RADIANS(D15)))*6378137,IF(AND(D14<>\"\",E14<>\"\",D15=\"\",E15=\"\"),ACOS(COS(RADIANS(D14))*COS(RADIANS(E14))*COS(RADIANS(D$9))*COS(RADIANS(E$9)) + COS(RADIANS(D14))*SIN(RADIANS(E14))*COS(RADIANS(D$9))*SIN(RADIANS(E$9)) + SIN(RADIANS(D14))*SIN(RADIANS(D$9)))*6378137,\"\"))","v":""},""," ",{"$f":"IF(Identification!C43<>\"\",Identification!C43,\"\")","v":""}]
[7,null,null,null,null,null,null,null,null,null,null,null,null,null,null,0,0,0,0,0,"",""," ",{"$f":"IF(Identification!C44<>\"\",Identification!C44,\"\")","v":""}]
[8,null,null,null,null,null,null,null,null,null,null,null,null,null,null,0,0,0,0,0,"","",null,{"$f":"IF(Identification!C45<>\"\",Identification!C45,\"\")","v":""}]
[9,null,null,null,null,null,null,null,null,null,null,null,null,null,null,0,0,0,0,0,"","",null,{"$f":"IF(Identification!C46<>\"\",Identification!C46,\"\")","v":""}]
[10,null,null,null,null,null,null,null,null,null,null,null,null,null,null,0,0,0,0,0,"","",null,{"$f":"IF(Identification!C47<>\"\",Identification!C47,\"\")","v":""}]
[11,null,null,null,null,null,null,null,null,null,null,null,null,null,null,0,0,0,0,0,"","",null,{"$f":"IF(Identification!C48<>\"\",Identification!C48,\"\")","v":""}]
[12,null,null,null,null,null,null,null,null,null,null,null,null,null,null,0,0,0,0,0,"","",null,{"$f":"IF(Identification!C49<>\"\",Identification!C49,\"\")","v":""}]
[13,null,null,null,null,null,null,null,null,null,null,null,null,null,null,0,0,0,0,0,"","",null,{"$f":"IF(Identification!C50<>\"\",Identification!C50,\"\")","v":""}]
[14,null,null,null,null,null,null,null,null,null,null,null,null,null,null,0,0,0,0,0,"","",null,{"$f":"IF(Identification!C51<>\"\",Identification!C51,\"\")","v":""}]
[15,null,null,null,null,null,null,null,null,null,null,null,null,null,null,0,0,0,0,0,"","",null,{"$f":"IF(Identification!C52<>\"\",Identification!C52,\"\")","v":""}]
[16,null,null,null,null,null,null,null,null,null,null,null,null,null,null,0,0,0,0,0,"","",null,{"$f":"IF(Identification!C53<>\"\",Identification!C53,\"\")","v":""}]
[17,null,null,null,null,null,null,null,null,null,null,null,null,null,null,0,0,0,0,0,"","",null,{"$f":"IF(Identification!C54<>\"\",Identification!C54,\"\")","v":""}]
[18,null,null,null,null,null,null,null,null,null,null,null,null,null,null,0,0,0,0,0,"","",null,{"$f":"IF(Identification!C55<>\"\",Identification!C55,\"\")","v":""}]
[19,null,null,null,null,null,null,null,null,null,null,null,null,null,null,0,0,0,0,0,"","",null,{"$f":"IF(Identification!C56<>\"\",Identification!C56,\"\")","v":""}]
[20,null,null,null,null,null,null,null,null,null,null,null,null,null,null,0,0,0,0,0,"",""]
[21,null,null,null,null,null,null,null,null,null,null,null,null,null,null,0,0,0,0,0,"",""]
[22,null,null,null,null,null,null,null,null,null,null,null,null,null,null,0,0,0,0,0,"",""]
[23,null,null,null,null,null,null,null,null,null,null,null,null,null,null,0,0,0,0,0,"",""]
[24,null,null,null,null,null,null,null,null,null,null,null,null,null,null,0,0,0,0,0,"",""]
[25,null,null,null,null,null,null,null,null,null,null,null,null,null,null,0,0,0,0,0,"",""]
[26,null,null,null,null,null,null,null,null,null,null,null,null,null,null,0,0,0,0,0,"",""]
[27,null,null,null,null,null,null,null,null,null,null,null,null,null,null,0,0,0,0,0,"",""]
[28,null,null,null,null,null,null,null,null,null,null,null,null,null,null,0,0,0,0,0,"",""]
[29,null,null,null,null,null,null,null,null,null,null,null,null,null,null,0,0,0,0,0,"",""]
[30,null,null,null,null,null,null,null,null,null,null,null,null,null,null,0,0,0,0,0,"",""]
[31,null,null,null,null,null,null,null,null,null,null,null,null,null,null,0,0,0,0,0,"",""]
[32,null,null,null,null,null,null,null,null,null,null,null,null,null,null,0,0,0,0,0,"",""]
[33,null,null,null,null,null,null,null,null,null,null,null,null,null,null,0,0,0,0,0,"",""]
[34,null,null,null,null,null,null,null,null,null,null,null,null,null,null,0,0,0,0,0,"",""]
[35,null,null,null,null,null,null,null,null,null,null,null,null,null,null,0,0,0,0,0,"",""]
[36,null,null,null,null,null,null,null,null,null,null,null,null,null,null,0,0,0,0,0,"",""]
[37,null,null,null,null,null,null,null,null,null,null,null,null,null,null,0,0,0,0,0,"",""]
[38,null,null,null,null,null,null,null,null,null,null,null,null,null,null,0,0,0,0,0,"",""]
[39,null,null,null,null,null,null,null,null,null,null,null,null,null,null,0,0,0,0,0,"",""]
[40,null,null,null,null,null,null,null,null,null,null,null,null,null,null,0,0,0,0,0,"",""]
[41,null,null,null,null,null,null,null,null,null,null,null,null,null,null,0,0,0,0,0,"",""]
[42,null,null,null,null,null,null,null,null,null,null,null,null,null,null,0,0,0,0,0,"",""]
[43,null,null,null,null,null,null,null,null,null,null,null,null,null,null,0,0,0,0,0,"",""]
[44,null,null,null,null,null,null,null,null,null,null,null,null,null,null,0,0,0,0,0,"",""]
[45,null,null,null,null,null,null,null,null,null,null,null,null,null,null,0,0,0,0,0,"",""]
[46,null,null,null,null,null,null,null,null,null,null,null,null,null,null,0,0,0,0,0,"",""]
[47,null,null,null,null,null,null,null,null,null,null,null,null,null,null,0,0,0,0,0,"",""]
[48,null,null,null,null,null,null,null,null,null,null,null,null,null,null,{"$f":"F56*C56/100","v":0},{"$f":"G56*C56/100","v":0},{"$f":"H56*C56/100","v":0},{"$f":"I56*C56/100","v":0},{"$f":"J56*C56/100","v":0},"",""]
[49,null,null,null,null,null,null,null,null,null,null,null,null,null,null,0,0,0,0,0,"",""]
[50,null,null,null,null,null,null,null,null,null,null,null,null,null,null,0,0,0,0,0,"",""]
[51,null,null,null,null,null,null,null,null,null,null,null,null,null,null,0,0,0,0,0,"",""]
[52,null,null,null,null,null,null,null,null,null,null,null,null,null,null,0,0,0,0,0,"",""]
[53,null,null,null,null,null,null,null,null,null,null,null,null,null,null,0,0,0,0,0,"",""]
[54,null,null,null,null,null,null,null,null,null,null,null,null,null,null,0,0,0,0,0,"",""]
[55,null,null,null,null,null,null,null,null,null,null,null,null,null,null,0,0,0,0,0,"",""]
[56,null,null,null,null,null,null,null,null,null,null,null,null,null,null,0,0,0,0,0,"",""]
[57,null,null,null,null,null,null,null,null,null,null,null,null,null,null,0,0,0,0,0,"",""]
[58,null,null,null,null,null,null,null,null,null,null,null,null,null,null,0,0,0,0,0,"",""]
[59,null,null,null,null,null,null,null,null,null,null,null,null,null,null,0,0,0,0,0,"",""]
[60,null,null,null,null,null,null,null,null,null,null,null,null,null,null,0,0,0,0,0,"",""]
[61,null,null,null,null,null,null,null,null,null,null,null,null,null,null,0,0,0,0,0,"",""]
[62,null,null,null,null,null,null,null,null,null,null,null,null,null,null,0,0,0,0,0,"",""]
[63,null,null,null,null,null,null,null,null,null,null,null,null,null,null,0,0,0,0,0,"",""]
[64,null,null,null,null,null,null,null,null,null,null,null,null,null,null,0,0,0,0,0,"",""]
[65,null,null,null,null,null,null,null,null,null,null,null,null,null,null,0,0,0,0,0,"",""]
[66,null,null,null,null,null,null,null,null,null,null,null,null,null,null,0,0,0,0,0,"",{"$f":"IF(C74>0,1-(S74+T74)/C74,\"\")","v":""}]
[67,null,null,null,null,null,null,null,null,null,null,null,null,null,null,0,0,0,0,0,"",""]
[68,null,null,null,null,null,null,null,null,null,null,null,null,null,null,0,0,0,0,0,"",""]
[69,null,null,null,null,null,null,null,null,null,null,null,null,null,null,0,0,0,0,0,"",""]
[70,null,null,null,null,null,null,null,null,null,null,null,null,null,null,0,0,0,0,0,{"$f":"IF(AND(D78<>\"\",E78<>\"\",D79<>\"\",E79<>\"\"),ACOS(COS(RADIANS(D78))*COS(RADIANS(E78))*COS(RADIANS(D79))*COS(RADIANS(E79)) + COS(RADIANS(D78))*SIN(RADIANS(E78))*COS(RADIANS(D79))*SIN(RADIANS(E79)) + SIN(RADIANS(D78))*SIN(RADIANS(D79)))*6378137,IF(AND(D78<>\"\",E78<>\"\",D79=\"\",E79=\"\"),ACOS(COS(RADIANS(D78))*COS(RADIANS(E78))*COS(RADIANS(D$9))*COS(RADIANS(E$9)) + COS(RADIANS(D78))*SIN(RADIANS(E78))*COS(RADIANS(D$9))*SIN(RADIANS(E$9)) + SIN(RADIANS(D78))*SIN(RADIANS(D$9)))*6378137,\"\"))","v":""},""]
[71,null,null,null,null,null,null,null,null,null,null,null,null,null,null,0,0,0,0,0,"",""]
[72,null,null,null,null,null,null,null,null,null,null,null,null,null,null,0,0,0,0,0,"",""]
[73,null,null,null,null,null,null,null,null,null,null,null,null,null,null,0,0,0,0,0,"",""]
[74,null,null,null,null,null,null,null,null,null,null,null,null,null,null,0,0,0,0,0,"",""]
[75,null,null,null,null,null,null,null,null,null,null,null,null,null,null,0,0,0,0,0,"",""]
[76,null,null,null,null,null,null,null,null,null,null,null,null,null,null,0,0,0,0,0,"",""]
[77,null,null,null,null,null,null,null,null,null,null,null,null,null,null,0,0,0,0,0,"",""]
[78,null,null,null,null,null,null,null,null,null,null,null,null,null,null,0,0,0,0,0,"",""]
[79,null,null,null,null,null,null,null,null,null,null,null,null,null,null,0,0,0,0,0,"",""]
[80,null,null,null,null,null,null,null,null,null,null,null,null,null,null,0,0,0,0,0,"",""]
[81,null,null,null,null,null,null,null,null,null,null,null,null,null,null,0,0,0,0,0,"",""]
[82,null,null,null,null,null,null,null,null,null,null,null,null,null,null,0,0,0,0,0,"",""]
[83,null,null,null,null,null,null,null,null,null,null,null,null,null,null,0,0,0,0,0,"",""]
[84,null,null,null,null,null,null,null,null,null,null,null,null,null,null,0,0,0,0,0,"",""]
[85,null,null,null,null,null,null,null,null,null,null,null,null,null,null,0,0,0,0,0,"",""]
[86,null,null,null,null,null,null,null,null,null,null,null,null,null,null,0,0,0,0,0,"",""]
[87,null,null,null,null,null,null,null,null,null,null,null,null,null,null,0,0,0,0,0,"",""]
[88,null,null,null,null,null,null,null,null,null,null,null,null,null,null,0,0,0,0,0,"",""]
[89,null,null,null,null,null,null,null,null,null,null,null,null,null,null,0,0,0,0,0,"",""]
[90,null,null,null,null,null,null,null,null,null,null,null,null,null,null,0,0,0,0,0,"",""]
[91,null,null,null,null,null,null,null,null,null,null,null,null,null,null,0,0,0,0,0,"",""]
[92,null,null,null,null,null,null,null,null,null,null,null,null,null,null,0,0,0,0,0,"",""]
[93,null,null,null,null,null,null,null,null,null,null,null,null,null,null,0,0,0,0,0,"",""]
[94,null,null,null,null,null,null,null,null,null,null,null,null,null,null,0,0,0,0,0,"",""]
[95,null,null,null,null,null,null,null,null,null,null,null,null,null,null,0,0,0,0,0,"",""]
[96,null,null,null,null,null,null,null,null,null,null,null,null,null,null,0,0,0,0,0,"",""]
[97,null,null,null,null,null,null,null,null,null,null,null,null,null,null,0,0,0,0,0,"",""]
[98,null,null,null,null,null,null,null,null,null,null,null,null,null,null,0,0,0,0,0,"",""]
[99,null,null,null,null,null,null,null,null,null,null,null,null,null,null,0,0,0,0,0,"",""]
[100,null,null,null,null,null,null,null,null,null,null,null,null,null,null,0,0,0,0,0,"",""]
[101,null,null,null,null,null,null,null,null,null,null,null,null,null,null,0,0,0,0,0,"",""]
[102,null,null,null,null,null,null,null,null,null,null,null,null,null,null,0,0,0,0,0,"",""]
[103,null,null,null,null,null,null,null,null,null,null,null,null,null,null,0,0,0,0,0,"",""]
[104,null,null,null,null,null,null,null,null,null,null,null,null,null,null,0,0,0,0,0,"",""]
[105,null,null,null,null,null,null,null,null,null,null,null,null,null,null,0,0,0,0,0,"",""]
[106,null,null,null,null,null,null,null,null,null,null,null,null,null,null,0,0,0,0,0,"",""]
[107,null,null,null,null,null,null,null,null,null,null,null,null,null,null,0,0,0,0,0,"",""]
[108,null,null,null,null,null,null,null,null,null,null,null,null,null,null,0,0,0,0,0,"",""]
[109,null,null,null,null,null,null,null,null,null,null,null,null,null,null,0,0,0,0,0,"",""]
[110,null,null,null,null,null,null,null,null,null,null,null,null,null,null,0,0,0,0,0,"",""]
[111,null,null,null,null,null,null,null,null,null,null,null,null,null,null,0,0,0,0,0,"",""]
[112,null,null,null,null,null,null,null,null,null,null,null,null,null,null,{"$f":"F120*C120/100","v":0},{"$f":"G120*C120/100","v":0},{"$f":"H120*C120/100","v":0},{"$f":"I120*C120/100","v":0},{"$f":"J120*C120/100","v":0},"",""]
[113,null,null,null,null,null,null,null,null,null,null,null,null,null,null,0,0,0,0,0,"",""]
[114,null,null,null,null,null,null,null,null,null,null,null,null,null,null,0,0,0,0,0,"",""]
[115,null,null,null,null,null,null,null,null,null,null,null,null,null,null,0,0,0,0,0,"",""]
[116,null,null,null,null,null,null,null,null,null,null,null,null,null,null,0,0,0,0,0,"",""]
[117,null,null,null,null,null,null,null,null,null,null,null,null,null,null,0,0,0,0,0,"",""]
[118,null,null,null,null,null,null,null,null,null,null,null,null,null,null,0,0,0,0,0,"",""]
[119,null,null,null,null,null,null,null,null,null,null,null,null,null,null,0,0,0,0,0,"",""]
[120,null,null,null,null,null,null,null,null,null,null,null,null,null,null,0,0,0,0,0,"",""]
[121,null,null,null,null,null,null,null,null,null,null,null,null,null,null,0,0,0,0,0,"",""]
[122,null,null,null,null,null,null,null,null,null,null,null,null,null,null,0,0,0,0,0,"",""]
[123,null,null,null,null,null,null,null,null,null,null,null,null,null,null,0,0,0,0,0,"",""]
[124,null,null,null,null,null,null,null,null,null,null,null,null,null,null,0,0,0,0,0,"",""]
[125,null,null,null,null,null,null,null,null,null,null,null,null,null,null,0,0,0,0,0,"",""]
[126,null,null,null,null,null,null,null,null,null,null,null,null,null,null,0,0,0,0,0,"",""]
[127,null,null,null,null,null,null,null,null,null,null,null,null,null,null,0,0,0,0,0,"",""]
[128,null,null,null,null,null,null,null,null,null,null,null,null,null,null,0,0,0,0,0,"",""]
[129,null,null,null,null,null,null,null,null,null,null,null,null,null,null,0,0,0,0,0,"",""]
[130,null,null,null,null,null,null,null,null,null,null,null,null,null,null,0,0,0,0,0,"",{"$f":"IF(C138>0,1-(S138+T138)/C138,\"\")","v":""}]
[131,null,null,null,null,null,null,null,null,null,null,null,null,null,null,0,0,0,0,0,"",""]
[132,null,null,null,null,null,null,null,null,null,null,null,null,null,null,0,0,0,0,0,"",""]
[133,null,null,null,null,null,null,null,null,null,null,null,null,null,null,0,0,0,0,0,"",""]
[134,null,null,null,null,null,null,null,null,null,null,null,null,null,null,0,0,0,0,0,{"$f":"IF(AND(D142<>\"\",E142<>\"\",D143<>\"\",E143<>\"\"),ACOS(COS(RADIANS(D142))*COS(RADIANS(E142))*COS(RADIANS(D143))*COS(RADIANS(E143)) + COS(RADIANS(D142))*SIN(RADIANS(E142))*COS(RADIANS(D143))*SIN(RADIANS(E143)) + SIN(RADIANS(D142))*SIN(RADIANS(D143)))*6378137,IF(AND(D142<>\"\",E142<>\"\",D143=\"\",E143=\"\"),ACOS(COS(RADIANS(D142))*COS(RADIANS(E142))*COS(RADIANS(D$9))*COS(RADIANS(E$9)) + COS(RADIANS(D142))*SIN(RADIANS(E142))*COS(RADIANS(D$9))*SIN(RADIANS(E$9)) + SIN(RADIANS(D142))*SIN(RADIANS(D$9)))*6378137,\"\"))","v":""},""]
[135,null,null,null,null,null,null,null,null,null,null,null,null,null,null,0,0,0,0,0,"",""]
[136,null,null,null,null,null,null,null,null,null,null,null,null,null,null,0,0,0,0,0,"",""]
[137,null,null,null,null,null,null,null,null,null,null,null,null,null,null,0,0,0,0,0,"",""]
[138,null,null,null,null,null,null,null,null,null,null,null,null,null,null,0,0,0,0,0,"",""]
[139,null,null,null,null,null,null,null,null,null,null,null,null,null,null,0,0,0,0,0,"",""]
[140,null,null,null,null,null,null,null,null,null,null,null,null,null,null,0,0,0,0,0,"",""]
[141,null,null,null,null,null,null,null,null,null,null,null,null,null,null,0,0,0,0,0,"",""]
[142,null,null,null,null,null,null,null,null,null,null,null,null,null,null,0,0,0,0,0,"",""]
[143,null,null,null,null,null,null,null,null,null,null,null,null,null,null,0,0,0,0,0,"",""]
[144,null,null,null,null,null,null,null,null,null,null,null,null,null,null,0,0,0,0,0,"",""]
[145,null,null,null,null,null,null,null,null,null,null,null,null,null,null,0,0,0,0,0,"",""]
[146,null,null,null,null,null,null,null,null,null,null,null,null,null,null,0,0,0,0,0,"",""]
[147,null,null,null,null,null,null,null,null,null,null,null,null,null,null,0,0,0,0,0,"",""]
[148,null,null,null,null,null,null,null,null,null,null,null,null,null,null,0,0,0,0,0,"",""]
[149,null,null,null,null,null,null,null,null,null,null,null,null,null,null,0,0,0,0,0,"",""]
[150,null,null,null,null,null,null,null,null,null,null,null,null,null,null,0,0,0,0,0,"",""]
[151,null,null,null,null,null,null,null,null,null,null,null,null,null,null,0,0,0,0,0,"",""]
[152,null,null,null,null,null,null,null,null,null,null,null,null,null,null,0,0,0,0,0,"",""]
[153,null,null,null,null,null,null,null,null,null,null,null,null,null,null,0,0,0,0,0,"",""]
[154,null,null,null,null,null,null,null,null,null,null,null,null,null,null,0,0,0,0,0,"",""]
[155,null,null,null,null,null,null,null,null,null,null,null,null,null,null,0,0,0,0,0,"",""]
[156,null,null,null,null,null,null,null,null,null,null,null,null,null,null,0,0,0,0,0,"",""]
[157,null,null,null,null,null,null,null,null,null,null,null,null,null,null,0,0,0,0,0,"",""]
[158,null,null,null,null,null,null,null,null,null,null,null,null,null,null,0,0,0,0,0,"",""]
[159,null,null,null,null,null,null,null,null,null,null,null,null,null,null,0,0,0,0,0,"",""]
[160,null,null,null,null,null,null,null,null,null,null,null,null,null,null,0,0,0,0,0,"",""]
[161,null,null,null,null,null,null,null,null,null,null,null,null,null,null,0,0,0,0,0,"",""]
[162,null,null,null,null,null,null,null,null,null,null,null,null,null,null,0,0,0,0,0,"",""]
[163,null,null,null,null,null,null,null,null,null,null,null,null,null,null,0,0,0,0,0,"",""]
[164,null,null,null,null,null,null,null,null,null,null,null,null,null,null,0,0,0,0,0,"",""]
[165,null,null,null,null,null,null,null,null,null,null,null,null,null,null,0,0,0,0,0,"",""]
[166,null,null,null,null,null,null,null,null,null,null,null,null,null,null,0,0,0,0,0,"",""]
[167,null,null,null,null,null,null,null,null,null,null,null,null,null,null,0,0,0,0,0,"",""]
[168,null,null,null,null,null,null,null,null,null,null,null,null,null,null,0,0,0,0,0,"",""]
[169,null,null,null,null,null,null,null,null,null,null,null,null,null,null,0,0,0,0,0,"",""]
[170,null,null,null,null,null,null,null,null,null,null,null,null,null,null,0,0,0,0,0,"",""]
[171,null,null,null,null,null,null,null,null,null,null,null,null,null,null,0,0,0,0,0,"",""]
[172,null,null,null,null,null,null,null,null,null,null,null,null,null,null,0,0,0,0,0,"",""]
[173,null,null,null,null,null,null,null,null,null,null,null,null,null,null,0,0,0,0,0,"",""]
[174,null,null,null,null,null,null,null,null,null,null,null,null,null,null,0,0,0,0,0,"",""]
[175,null,null,null,null,null,null,null,null,null,null,null,null,null,null,0,0,0,0,0,"",""]
[176,null,null,null,null,null,null,null,null,null,null,null,null,null,null,{"$f":"F184*C184/100","v":0},{"$f":"G184*C184/100","v":0},{"$f":"H184*C184/100","v":0},{"$f":"I184*C184/100","v":0},{"$f":"J184*C184/100","v":0},"",""]
[177,null,null,null,null,null,null,null,null,null,null,null,null,null,null,0,0,0,0,0,"",""]
[178,null,null,null,null,null,null,null,null,null,null,null,null,null,null,0,0,0,0,0,"",""]
[179,null,null,null,null,null,null,null,null,null,null,null,null,null,null,0,0,0,0,0,"",""]
[180,null,null,null,null,null,null,null,null,null,null,null,null,null,null,0,0,0,0,0,"",""]
[181,null,null,null,null,null,null,null,null,null,null,null,null,null,null,0,0,0,0,0,"",""]
[182,null,null,null,null,null,null,null,null,null,null,null,null,null,null,0,0,0,0,0,"",""]
[183,null,null,null,null,null,null,null,null,null,null,null,null,null,null,0,0,0,0,0,"",""]
[184,null,null,null,null,null,null,null,null,null,null,null,null,null,null,0,0,0,0,0,"",""]
[185,null,null,null,null,null,null,null,null,null,null,null,null,null,null,0,0,0,0,0,"",""]
[186,null,null,null,null,null,null,null,null,null,null,null,null,null,null,0,0,0,0,0,"",""]
[187,null,null,null,null,null,null,null,null,null,null,null,null,null,null,0,0,0,0,0,"",""]
[188,null,null,null,null,null,null,null,null,null,null,null,null,null,null,0,0,0,0,0,"",""]
[189,null,null,null,null,null,null,null,null,null,null,null,null,null,null,0,0,0,0,0,"",""]
[190,null,null,null,null,null,null,null,null,null,null,null,null,null,null,0,0,0,0,0,"",""]
[191,null,null,null,null,null,null,null,null,null,null,null,null,null,null,0,0,0,0,0,"",""]
[192,null,null,null,null,null,null,null,null,null,null,null,null,null,null,0,0,0,0,0,"",""]
[193,null,null,null,null,null,null,null,null,null,null,null,null,null,null,0,0,0,0,0,"",""]
[194,null,null,null,null,null,null,null,null,null,null,null,null,null,null,0,0,0,0,0,"",{"$f":"IF(C202>0,1-(S202+T202)/C202,\"\")","v":""}]
[195,null,null,null,null,null,null,null,null,null,null,null,null,null,null,0,0,0,0,0,"",""]
[196,null,null,null,null,null,null,null,null,null,null,null,null,null,null,0,0,0,0,0,"",""]
[197,null,null,null,null,null,null,null,null,null,null,null,null,null,null,0,0,0,0,0,"",""]
[198,null,null,null,null,null,null,null,null,null,null,null,null,null,null,0,0,0,0,0,{"$f":"IF(AND(D206<>\"\",E206<>\"\",D207<>\"\",E207<>\"\"),ACOS(COS(RADIANS(D206))*COS(RADIANS(E206))*COS(RADIANS(D207))*COS(RADIANS(E207)) + COS(RADIANS(D206))*SIN(RADIANS(E206))*COS(RADIANS(D207))*SIN(RADIANS(E207)) + SIN(RADIANS(D206))*SIN(RADIANS(D207)))*6378137,IF(AND(D206<>\"\",E206<>\"\",D207=\"\",E207=\"\"),ACOS(COS(RADIANS(D206))*COS(RADIANS(E206))*COS(RADIANS(D$9))*COS(RADIANS(E$9)) + COS(RADIANS(D206))*SIN(RADIANS(E206))*COS(RADIANS(D$9))*SIN(RADIANS(E$9)) + SIN(RADIANS(D206))*SIN(RADIANS(D$9)))*6378137,\"\"))","v":""},""]
[199,null,null,null,null,null,null,null,null,null,null,null,null,null,null,0,0,0,0,0,{"$f":"IF(AND(D207<>\"\",E207<>\"\",D208<>\"\",E208<>\"\"),ACOS(COS(RADIANS(D207))*COS(RADIANS(E207))*COS(RADIANS(D208))*COS(RADIANS(E208)) + COS(RADIANS(D207))*SIN(RADIANS(E207))*COS(RADIANS(D208))*SIN(RADIANS(E208)) + SIN(RADIANS(D207))*SIN(RADIANS(D208)))*6378137,IF(AND(D207<>\"\",E207<>\"\",D208=\"\",E208=\"\"),ACOS(COS(RADIANS(D207))*COS(RADIANS(E207))*COS(RADIANS(D$9))*COS(RADIANS(E$9)) + COS(RADIANS(D207))*SIN(RADIANS(E207))*COS(RADIANS(D$9))*SIN(RADIANS(E$9)) + SIN(RADIANS(D207))*SIN(RADIANS(D$9)))*6378137,\"\"))","v":""},""]
[200,null,null,null,null,null,null,null,null,null,null,null,null,null,null,0,0,0,0,0,{"$f":"IF(AND(D208<>\"\",E208<>\"\",D9<>\"\",E9<>\"\"),ACOS(COS(RADIANS(D208))*COS(RADIANS(E208))*COS(RADIANS(D9))*COS(RADIANS(E9)) + COS(RADIANS(D208))*SIN(RADIANS(E208))*COS(RADIANS(D9))*SIN(RADIANS(E9)) + SIN(RADIANS(D208))*SIN(RADIANS(D9)))*6378137,\"\")","v":""},""]
[]
["Totaux:",{"$f":"IF(B211>0,B211 & IF(B211=1,\" zone\",\" zones\"),\"---\")","v":"---"},{"$f":"IF(C211>0,C211,\"---\")","v":"---"},null,null,{"$f":"IF(F211>0,F211,\"---\")","v":"---"},{"$f":"IF(G211>0,G211,\"---\")","v":"---"},{"$f":"IF(H211>0,H211,\"---\")","v":"---"},{"$f":"IF(I211>0,I211,\"---\")","v":"---"},{"$f":"IF(J211>0,J211,\"---\")","v":"---"}]
[null,{"$f":"COUNTA(B9:B208)","v":0},{"$f":"IF(SUM(C9:C208)>0,SUM(C9:C208),\"---\")","v":"---"},null,null,{"$f":"IF(SUM(P9:P208)>0,SUM(P9:P208),\"---\")","v":"---"},{"$f":"IF(SUM(Q9:Q208)>0,SUM(Q9:Q208),\"---\")","v":"---"},{"$f":"IF(SUM(R9:R208)>0,SUM(R9:R208),\"---\")","v":"---"},{"$f":"IF(SUM(S9:S208)>0,SUM(S9:S208),\"---\")","v":"---"},{"$f":"IF(SUM(T9:T208)>0,SUM(T9:T208),\"---\")","v":"---"}]
["Lg Sélect"]
["Lg Undo",null,null,null,null,null,null,null,null,null,null,null,null,null,9]
[]
[]
[]
[]
[]
[]
["Données","Agriculture",752.95114236765505,48.694093000000002,-72.359334000000004,5,5,90,5,null,"Manon Ouellet","2007-07-12",null,"45, 46, 47"]
["test","Naturelle",7180.1169012004602,48.692585000000001,-72.349345,100,0,0,33,null,"Manon Ouellet","2007-07-12"]
[null,"Naturelle",11514.89392115613,48.726315,-72.266030000000001,100,0,0,null,null,"Manon Ouellet","2007-07-12"]
[null,"Naturelle",13287.5225915181,48.747422,-72.112487999999999,100,0,0,null,null,"Manon Ouellet","2007-07-12"]
[null,"Foresterie",5796.7686271119237,48.673707,-71.970213000000001,25,25,50,null,null,"Manon Ouellet","2007-07-12"]
[null,"Infrastructures",14688.581705479,48.678066999999999,-71.891628999999995,70,15,15,null,null,"Manon Ouellet","2007-07-12"]
[null,"Naturelle",9361.2615875528809,48.570638000000002,-71.775721000000004,100,0,0,null,null,"Manon Ouellet","2007-07-12"]
[null,"Naturelle",9929.5664591787499,48.487157000000003,-71.791021000000001,100,0,0,null,null,"Manon Ouellet","2007-07-12"]
[null,"Foresterie",13697.094867787042,48.427171999999999,-71.890567000000004,50,25,25,null,null,"Michel Côté","2007-07-12"]
[null,"Foresterie",4657.3185302131751,48.453014000000003,-72.071903000000006,35,35,30,null,null,"Michel Côté","2007-07-12"]
[null,"Foresterie",3484.2188654505685,48.476447,-72.124172999999999,20,20,60,null,null,"Michel Côté","2007-07-12"]
[null,"Naturelle",2658.6212494125521,48.448214999999998,-72.103795000000005,100,0,0,null,null,"Manon Ouellet","2007-07-12"]
[null,"Infrastructures",5805.175930466402,48.452620000000003,-72.139184999999998,30,30,40,12,15,"Manon Ouellet","2007-07-12"]
[null,"Agriculture",11236.147847743303,48.484062000000002,-72.201932999999997,75,20,5,null,null,"Mario Bérubé","2007-07-12"]
[null,"Naturelle",4607.6130707585617,48.582802999999998,-72.233548999999996,100,0,0,null,null,"Sylvie Legendre","2007-07-12"]
[null,"Naturelle",4124.1761310692946,48.587159,-72.295771999999999,100,0,0,null,null,"Michel Côté","2007-07-12"]
[null,"Foresterie",2816.7025109159499,48.608888,-72.341144999999997,90,10,0,null,null,"Manon Ouellet","2007-07-13"]
[null,"Agriculture",6069.6199476130996,48.625,-72.311388888888885,30,30,40,null,75,"Manon Ouellet","2007-07-13"]

{"sheet":"Utilisation du sol","index":3,"n_rows":18,"n_cols":5,"rows_kept":18,"cut":false,"hidden":true,"merged":[[0,0,0,5],[1,0,1,5]]}
[{"$f":"\"Tableau 1. \" & Options!C9","v":"Tableau 1. Répartition de l'utilisation du sol dans la bande riveraine"}]
[{"$f":"Options!C10","v":""}]
[]
["Catégories d'utilisation",null,"Nombre de zones homogènes","Surface de bande riveraine (m²)","Importance relative (%)"]
["Zones"]
[{"$f":"Options!C2","v":"Naturelle"},null,{"$f":"COUNTIF('Saisie des données'!$B$9:$B$208,'Saisie des données'!W9)","v":0},{"$f":"SUMIF('Saisie des données'!$B$9:$B$208,'Saisie des données'!W9,'Saisie des données'!$C$9:$C$208)*Options!C70","v":0},{"$f":"IF($D$12>0,D6/$D$12,0)","v":0}]
[{"$f":"Options!C3","v":"Habitée"},null,{"$f":"COUNTIF('Saisie des données'!$B$9:$B$208,'Saisie des données'!W10)","v":0},{"$f":"SUMIF('Saisie des données'!$B$9:$B$208,'Saisie des données'!W10,'Saisie des données'!$C$9:$C$208)*Options!C70","v":0},{"$f":"IF($D$12>0,D7/$D$12,0)","v":0}]
[{"$f":"Options!C4","v":"Infrastructures"},null,{"$f":"COUNTIF('Saisie des données'!$B$9:$B$208,'Saisie des données'!W11)","v":0},{"$f":"SUMIF('Saisie des données'!$B$9:$B$208,'Saisie des données'!W11,'Saisie des données'!$C$9:$C$208)*Options!C70","v":0},{"$f":"IF($D$12>0,D8/$D$12,0)","v":0}]
[{"$f":"Options!C5","v":"Agriculture"},null,{"$f":"COUNTIF('Saisie des données'!$B$9:$B$208,'Saisie des données'!W12)","v":0},{"$f":"SUMIF('Saisie des données'!$B$9:$B$208,'Saisie des données'!W12,'Saisie des données'!$C$9:$C$208)*Options!C70","v":0},{"$f":"IF($D$12>0,D9/$D$12,0)","v":0}]
[{"$f":"Options!C6","v":"Foresterie"},null,{"$f":"COUNTIF('Saisie des données'!$B$9:$B$208,'Saisie des données'!W13)","v":0},{"$f":"SUMIF('Saisie des données'!$B$9:$B$208,'Saisie des données'!W13,'Saisie des données'!$C$9:$C$208)*Options!C70","v":0},{"$f":"IF($D$12>0,D10/$D$12,0)","v":0}]
[]
["Total",null,{"$f":"SUM(C6:C10)","v":0},{"$f":"SUM(D6:D10)","v":0},{"$f":"SUM(E6:E10)","v":0}]
["Classes"]
["A (>80% naturelle)",null,{"$f":"COUNTIF('Saisie des données'!$F$9:$F$208,\">80\")","v":0},{"$f":"SUMIF('Saisie des données'!$F$9:$F$208,\">80\",'Saisie des données'!$C$9:$C$208)","v":0}]
["B (60% à 80% naturelle)",null,{"$f":"COUNTIF('Saisie des données'!F9:F208,\">=60\")-COUNTIF('Saisie des données'!F9:F208,\">80\")","v":0},{"$f":"SUMPRODUCT(('Saisie des données'!$F$9:$F$208>=60)*('Saisie des données'!$F$9:$F$208<=80)*('Saisie des données'!$C$9:$C$208))","v":0}]
["C (40% à 59% naturelle)",null,{"$f":"COUNTIF('Saisie des données'!F10:F211,\">=40\")-COUNTIF('Saisie des données'!F10:F211,\">59\")","v":0},{"$f":"SUMPRODUCT(('Saisie des données'!$F$9:$F$208>=40)*('Saisie des données'!$F$9:$F$208<=59)*('Saisie des données'!$C$9:$C$208))","v":0}]
["D (20% à 39% naturelle)",null,{"$f":"COUNTIF('Saisie des données'!F11:F210,\">=20\")-COUNTIF('Saisie des données'!F11:F210,\">39\")","v":0},{"$f":"SUMPRODUCT(('Saisie des données'!$F$9:$F$208>=20)*('Saisie des données'!$F$9:$F$208<=39)*('Saisie des données'!$C$9:$C$208))","v":0}]
["E (<20 naturelle)",null,{"$f":"COUNTIF('Saisie des données'!$F$9:$F$208,\"<20\")","v":0},{"$f":"SUMIF('Saisie des données'!$F$9:$F$208,\"<20\",'Saisie des données'!$C$9:$C$208)","v":0}]

{"sheet":"Types d'aménagement","index":4,"n_rows":11,"n_cols":19,"rows_kept":11,"cut":false,"hidden":true,"merged":[[0,0,0,19],[1,0,1,19],[4,10,4,12],[4,13,4,15],[3,1,3,19],[3,0,4,0],[4,1,4,3],[4,16,4,19],[4,4,4,6],[4,7,4,9]]}
[{"$f":"\"Tableau 2. \" & Options!C21","v":"Tableau 2. Importance des types d'aménagement dans la bande riveraine"}]
[{"$f":"Options!C22","v":""}]
[]
["Type d'aménagement","Catégories d'utilisation du sol (surface de bande riveraine en m² / en %)"]
[null,{"$f":"Options!C2","v":"Naturelle"},null,null,{"$f":"Options!C3","v":"Habitée"},null,null,{"$f":"Options!C4","v":"Infrastructures"},null,null,{"$f":"Options!C5","v":"Agriculture"},null,null,{"$f":"Options!C6","v":"Foresterie"},null,null,{"$f":"Options!C7","v":"Total"}]
[]
[{"$f":"Options!C17","v":"Végétation naturelle"},{"$f":"SUMPRODUCT(('Saisie des données'!$B$9:$B$208=B$5)*('Saisie des données'!$P$9:$P$208))*Options!C70","v":0},"/",{"$f":"IF($Q$11>0,B7/$Q$11,0)","v":0},{"$f":"SUMPRODUCT(('Saisie des données'!$B$9:$B$208=E$5)*('Saisie des données'!$P$9:$P$208))*Options!C70","v":0},"/",{"$f":"IF($Q$11>0,E7/$Q$11,0)","v":0},{"$f":"SUMPRODUCT(('Saisie des données'!$B$9:$B$208=H$5)*('Saisie des données'!$P$9:$P$208))*Options!C70","v":0},"/",{"$f":"IF($Q$11>0,H7/$Q$11,0)","v":0},{"$f":"SUMPRODUCT(('Saisie des données'!$B$9:$B$208=K$5)*('Saisie des données'!$P$9:$P$208))*Options!C70","v":0},"/",{"$f":"IF($Q$11>0,K7/$Q$11,0)","v":0},{"$f":"SUMPRODUCT(('Saisie des données'!$B$9:$B$208=N$5)*('Saisie des données'!$P$9:$P$208))*Options!C70","v":0},"/",{"$f":"IF($Q$11>0,N7/$Q$11,0)","v":0},{"$f":"B7+E7+H7+K7+N7","v":0},"/",{"$f":"D7+G7+J7+M7+P7","v":0}]
[{"$f":"Options!C18","v":"Végétation ornementale"},{"$f":"SUMPRODUCT(('Saisie des données'!$B$9:$B$208=B$5)*('Saisie des données'!$Q$9:$Q$208))*Options!C70","v":0},"/",{"$f":"IF($Q$11>0,B8/$Q$11,0)","v":0},{"$f":"SUMPRODUCT(('Saisie des données'!$B$9:$B$208=E$5)*('Saisie des données'!$Q$9:$Q$208))*Options!C70","v":0},"/",{"$f":"IF($Q$11>0,E8/$Q$11,0)","v":0},{"$f":"SUMPRODUCT(('Saisie des données'!$B$9:$B$208=H$5)*('Saisie des données'!$Q$9:$Q$208))*Options!C70","v":0},"/",{"$f":"IF($Q$11>0,H8/$Q$11,0)","v":0},{"$f":"SUMPRODUCT(('Saisie des données'!$B$9:$B$208=K$5)*('Saisie des données'!$Q$9:$Q$208))*Options!C70","v":0},"/",{"$f":"IF($Q$11>0,K8/$Q$11,0)","v":0},{"$f":"SUMPRODUCT(('Saisie des données'!$B$9:$B$208=N$5)*('Saisie des données'!$Q$9:$Q$208))*Options!C70","v":0},"/",{"$f":"IF($Q$11>0,N8/$Q$11,0)","v":0},{"$f":"B8+E8+H8+K8+N8","v":0},"/",{"$f":"D8+G8+J8+M8+P8","v":0}]
[{"$f":"Options!C19","v":"Matériaux inertes"},{"$f":"SUMPRODUCT(('Saisie des données'!$B$9:$B$208=B$5)*('Saisie des données'!$R$9:$R$208))*Options!C70","v":0},"/",{"$f":"IF($Q$11>0,B9/$Q$11,0)","v":0},{"$f":"SUMPRODUCT(('Saisie des données'!$B$9:$B$208=E$5)*('Saisie des données'!$R$9:$R$208))*Options!C70","v":0},"/",{"$f":"IF($Q$11>0,E9/$Q$11,0)","v":0},{"$f":"SUMPRODUCT(('Saisie des données'!$B$9:$B$208=H$5)*('Saisie des données'!$R$9:$R$208))*Options!C70","v":0},"/",{"$f":"IF($Q$11>0,H9/$Q$11,0)","v":0},{"$f":"SUMPRODUCT(('Saisie des données'!$B$9:$B$208=K$5)*('Saisie des données'!$R$9:$R$208))*Options!C70","v":0},"/",{"$f":"IF($Q$11>0,K9/$Q$11,0)","v":0},{"$f":"SUMPRODUCT(('Saisie des données'!$B$9:$B$208=N$5)*('Saisie des données'!$R$9:$R$208))*Options!C70","v":0},"/",{"$f":"IF($Q$11>0,N9/$Q$11,0)","v":0},{"$f":"B9+E9+H9+K9+N9","v":0},"/",{"$f":"D9+G9+J9+M9+P9","v":0}]
[]
["Total",{"$f":"SUM(B7:B9)","v":0},"/",{"$f":"IF($Q$11>0,B11/$Q$11,0)","v":0},{"$f":"SUM(E7:E9)","v":0},"/",{"$f":"IF($Q$11>0,E11/$Q$11,0)","v":0},{"$f":"SUM(H7:H9)","v":0},"/",{"$f":"IF($Q$11>0,H11/$Q$11,0)","v":0},{"$f":"SUM(K7:K9)","v":0},"/",{"$f":"IF($Q$11>0,K11/$Q$11,0)","v":0},{"$f":"SUM(N7:N9)","v":0},"/",{"$f":"IF($Q$11>0,N11/$Q$11,0)","v":0},{"$f":"B11+E11+H11+K11+N11","v":0},"/",{"$f":"D11+G11+J11+M11+P11","v":0}]

{"sheet":"Classes d'aménagement","index":5,"n_rows":13,"n_cols":19,"rows_kept":13,"cut":false,"hidden":true,"merged":[[0,0,0,19],[1,0,1,19],[3,1,3,19],[4,7,4,9],[4,10,4,12],[4,13,4,15],[4,16,4,19],[3,0,4,0],[4,1,4,3],[4,4,4,6]]}
[{"$f":"\"Tableau 3. \" & Options!C28","v":"Tableau 3. Importance des classes d'aménagement dans la bande riveraine"}]
[{"$f":"Options!C29","v":""}]
[]
["Classe","Catégories d'utilisation du sol (surface de bande riveraine en m² / en %)"]
[null,{"$f":"Options!C2","v":"Naturelle"},null,null,{"$f":"Options!C3","v":"Habitée"},null,null,{"$f":"Options!C4","v":"Infrastructures"},null,null,{"$f":"Options!C5","v":"Agriculture"},null,null,{"$f":"Options!C6","v":"Foresterie"},null,null,{"$f":"Options!C7","v":"Total"}]
[]
[{"$f":"Options!C31","v":"A (80% et plus en végétation naturelle)"},{"$f":"SUMPRODUCT(('Saisie des données'!$B$9:$B$208=B$5)*('Saisie des données'!$F$9:$F$208>=80)*('Saisie des données'!$C$9:$C$208))*Options!C70","v":0},"/",{"$f":"IF($Q$13>0,B7/$Q$13,0)","v":0},{"$f":"SUMPRODUCT(('Saisie des données'!$B$9:$B$208=E$5)*('Saisie des données'!$F$9:$F$208>=80)*('Saisie des données'!$C$9:$C$208))*Options!C70","v":0},"/",{"$f":"IF($Q$13>0,E7/$Q$13,0)","v":0},{"$f":"SUMPRODUCT(('Saisie des données'!$B$9:$B$208=H$5)*('Saisie des données'!$F$9:$F$208>=80)*('Saisie des données'!$C$9:$C$208))*Options!C70","v":0},"/",{"$f":"IF($Q$13>0,H7/$Q$13,0)","v":0},{"$f":"SUMPRODUCT(('Saisie des données'!$B$9:$B$208=K$5)*('Saisie des données'!$F$9:$F$208>=80)*('Saisie des données'!$C$9:$C$208))*Options!C70","v":0},"/",{"$f":"IF($Q$13>0,K7/$Q$13,0)","v":0},{"$f":"SUMPRODUCT(('Saisie des données'!$B$9:$B$208=N$5)*('Saisie des données'!$F$9:$F$208>=80)*('Saisie des données'!$C$9:$C$208))*Options!C70","v":0},"/",{"$f":"IF($Q$13>0,N7/$Q$13,0)","v":0},{"$f":"B7+E7+H7+K7+N7","v":0},"/",{"$f":"D7+G7+J7+M7+P7","v":0}]
[{"$f":"Options!C32","v":"B (60% à <80% en végétation naturelle)"},{"$f":"SUMPRODUCT(('Saisie des données'!$B$9:$B$208=B$5)*('Saisie des données'!$F$9:$F$208>=60)*('Saisie des données'!$F$9:$F$208<80)*('Saisie des données'!$C$9:$C$208))*Options!C70","v":0},"/",{"$f":"IF($Q$13>0,B8/$Q$13,0)","v":0},{"$f":"SUMPRODUCT(('Saisie des données'!$B$9:$B$208=E$5)*('Saisie des données'!$F$9:$F$208>=60)*('Saisie des données'!$F$9:$F$208<80)*('Saisie des données'!$C$9:$C$208))*Options!C70","v":0},"/",{"$f":"IF($Q$13>0,E8/$Q$13,0)","v":0},{"$f":"SUMPRODUCT(('Saisie des données'!$B$9:$B$208=H$5)*('Saisie des données'!$F$9:$F$208>=60)*('Saisie des données'!$F$9:$F$208<80)*('Saisie des données'!$C$9:$C$208))*Options!C70","v":0},"/",{"$f":"IF($Q$13>0,H8/$Q$13,0)","v":0},{"$f":"SUMPRODUCT(('Saisie des données'!$B$9:$B$208=K$5)*('Saisie des données'!$F$9:$F$208>=60)*('Saisie des données'!$F$9:$F$208<80)*('Saisie des données'!$C$9:$C$208))*Options!C70","v":0},"/",{"$f":"IF($Q$13>0,K8/$Q$13,0)","v":0},{"$f":"SUMPRODUCT(('Saisie des données'!$B$9:$B$208=N$5)*('Saisie des données'!$F$9:$F$208>=60)*('Saisie des données'!$F$9:$F$208<80)*('Saisie des données'!$C$9:$C$208))*Options!C70","v":0},"/",{"$f":"IF($Q$13>0,N8/$Q$13,0)","v":0},{"$f":"B8+E8+H8+K8+N8","v":0},"/",{"$f":"D8+G8+J8+M8+P8","v":0}]
[{"$f":"Options!C33","v":"C (40% à <60% en végétation naturelle)"},{"$f":"SUMPRODUCT(('Saisie des données'!$B$9:$B$208=B$5)*('Saisie des données'!$F$9:$F$208>=40)*('Saisie des données'!$F$9:$F$208<60)*('Saisie des données'!$C$9:$C$208))*Options!C70","v":0},"/",{"$f":"IF($Q$13>0,B9/$Q$13,0)","v":0},{"$f":"SUMPRODUCT(('Saisie des données'!$B$9:$B$208=E$5)*('Saisie des données'!$F$9:$F$208>=40)*('Saisie des données'!$F$9:$F$208<60)*('Saisie des données'!$C$9:$C$208))*Options!C70","v":0},"/",{"$f":"IF($Q$13>0,E9/$Q$13,0)","v":0},{"$f":"SUMPRODUCT(('Saisie des données'!$B$9:$B$208=H$5)*('Saisie des données'!$F$9:$F$208>=40)*('Saisie des données'!$F$9:$F$208<60)*('Saisie des données'!$C$9:$C$208))*Options!C70","v":0},"/",{"$f":"IF($Q$13>0,H9/$Q$13,0)","v":0},{"$f":"SUMPRODUCT(('Saisie des données'!$B$9:$B$208=K$5)*('Saisie des données'!$F$9:$F$208>=40)*('Saisie des données'!$F$9:$F$208<60)*('Saisie des données'!$C$9:$C$208))*Options!C70","v":0},"/",{"$f":"IF($Q$13>0,K9/$Q$13,0)","v":0},{"$f":"SUMPRODUCT(('Saisie des données'!$B$9:$B$208=N$5)*('Saisie des données'!$F$9:$F$208>=40)*('Saisie des données'!$F$9:$F$208<60)*('Saisie des données'!$C$9:$C$208))*Options!C70","v":0},"/",{"$f":"IF($Q$13>0,N9/$Q$13,0)","v":0},{"$f":"B9+E9+H9+K9+N9","v":0},"/",{"$f":"D9+G9+J9+M9+P9","v":0}]
[{"$f":"Options!C34","v":"D (20% à <40% en végétation naturelle)"},{"$f":"SUMPRODUCT(('Saisie des données'!$B$9:$B$208=B$5)*('Saisie des données'!$F$9:$F$208>=20)*('Saisie des données'!$F$9:$F$208<40)*('Saisie des données'!$C$9:$C$208))*Options!C70","v":0},"/",{"$f":"IF($Q$13>0,B10/$Q$13,0)","v":0},{"$f":"SUMPRODUCT(('Saisie des données'!$B$9:$B$208=E$5)*('Saisie des données'!$F$9:$F$208>=20)*('Saisie des données'!$F$9:$F$208<40)*('Saisie des données'!$C$9:$C$208))*Options!C70","v":0},"/",{"$f":"IF($Q$13>0,E10/$Q$13,0)","v":0},{"$f":"SUMPRODUCT(('Saisie des données'!$B$9:$B$208=H$5)*('Saisie des données'!$F$9:$F$208>=20)*('Saisie des données'!$F$9:$F$208<40)*('Saisie des données'!$C$9:$C$208))*Options!C70","v":0},"/",{"$f":"IF($Q$13>0,H10/$Q$13,0)","v":0},{"$f":"SUMPRODUCT(('Saisie des données'!$B$9:$B$208=K$5)*('Saisie des données'!$F$9:$F$208>=20)*('Saisie des données'!$F$9:$F$208<40)*('Saisie des données'!$C$9:$C$208))*Options!C70","v":0},"/",{"$f":"IF($Q$13>0,K10/$Q$13,0)","v":0},{"$f":"SUMPRODUCT(('Saisie des données'!$B$9:$B$208=N$5)*('Saisie des données'!$F$9:$F$208>=20)*('Saisie des données'!$F$9:$F$208<40)*('Saisie des données'!$C$9:$C$208))*Options!C70","v":0},"/",{"$f":"IF($Q$13>0,N10/$Q$13,0)","v":0},{"$f":"B10+E10+H10+K10+N10","v":0},"/",{"$f":"D10+G10+J10+M10+P10","v":0}]
[{"$f":"Options!C35","v":"E (<20% en végétation naturelle)"},{"$f":"SUMPRODUCT(('Saisie des données'!$B$9:$B$208=B$5)*('Saisie des données'!$F$9:$F$208<20)*('Saisie des données'!$C$9:$C$208))*Options!C70","v":0},"/",{"$f":"IF($Q$13>0,B11/$Q$13,0)","v":0},{"$f":"SUMPRODUCT(('Saisie des données'!$B$9:$B$208=E$5)*('Saisie des données'!$F$9:$F$208<20)*('Saisie des données'!$C$9:$C$208))*Options!C70","v":0},"/",{"$f":"IF($Q$13>0,E11/$Q$13,0)","v":0},{"$f":"SUMPRODUCT(('Saisie des données'!$B$9:$B$208=H$5)*('Saisie des données'!$F$9:$F$208<20)*('Saisie des données'!$C$9:$C$208))*Options!C70","v":0},"/",{"$f":"IF($Q$13>0,H11/$Q$13,0)","v":0},{"$f":"SUMPRODUCT(('Saisie des données'!$B$9:$B$208=K$5)*('Saisie des données'!$F$9:$F$208<20)*('Saisie des données'!$C$9:$C$208))*Options!C70","v":0},"/",{"$f":"IF($Q$13>0,K11/$Q$13,0)","v":0},{"$f":"SUMPRODUCT(('Saisie des données'!$B$9:$B$208=N$5)*('Saisie des données'!$F$9:$F$208<20)*('Saisie des données'!$C$9:$C$208))*Options!C70","v":0},"/",{"$f":"IF($Q$13>0,N11/$Q$13,0)","v":0},{"$f":"B11+E11+H11+K11+N11","v":0},"/",{"$f":"D11+G11+J11+M11+P11","v":0}]
[]
["Total",{"$f":"SUM(B7:B11)","v":0},"/",{"$f":"IF($Q$13>0,B13/$Q$13,0)","v":0},{"$f":"SUM(E7:E11)","v":0},"/",{"$f":"IF($Q$13>0,E13/$Q$13,0)","v":0},{"$f":"SUM(H7:H11)","v":0},"/",{"$f":"IF($Q$13>0,H13/$Q$13,0)","v":0},{"$f":"SUM(K7:K11)","v":0},"/",{"$f":"IF($Q$13>0,K13/$Q$13,0)","v":0},{"$f":"SUM(N7:N11)","v":0},"/",{"$f":"IF($Q$13>0,N13/$Q$13,0)","v":0},{"$f":"SUM(Q7:Q11)","v":0},"/",{"$f":"D13+G13+J13+M13+P13","v":0}]

{"sheet":"Dégradation du rivage","index":6,"n_rows":11,"n_cols":19,"rows_kept":11,"cut":false,"hidden":true,"merged":[[3,0,4,0],[4,1,4,3],[4,4,4,6],[0,0,0,19],[1,0,1,19],[3,1,3,19],[4,7,4,9],[4,10,4,12],[4,13,4,15],[4,16,4,19]]}
[{"$f":"\"Tableau 4. \" & Options!C43","v":"Tableau 4. Importance des signes de dégradation du rivage"}]
[{"$f":"Options!C44","v":""}]
[]
["Descripteurs de dégradation","Catégories d'utilisation du sol (longueur de rivage en m / en %)"]
[null,{"$f":"Options!C2","v":"Naturelle"},null,null,{"$f":"Options!C3","v":"Habitée"},null,null,{"$f":"Options!C4","v":"Infrastructures"},null,null,{"$f":"Options!C5","v":"Agriculture"},null,null,{"$f":"Options!C6","v":"Foresterie"},null,null,{"$f":"Options!C7","v":"Total"}]
[]
[{"$f":"Options!C46","v":"Murets et remblais"},{"$f":"SUMPRODUCT(('Saisie des données'!$B$9:$B$208=B$5)*('Saisie des données'!$T$9:$T$208))","v":0},"/",{"$f":"IF($Q$11>0,B7/$Q$11,0)","v":0},{"$f":"SUMPRODUCT(('Saisie des données'!$B$9:$B$208=E$5)*('Saisie des données'!$T$9:$T$208))","v":0},"/",{"$f":"IF($Q$11>0,E7/$Q$11,0)","v":0},{"$f":"SUMPRODUCT(('Saisie des données'!$B$9:$B$208=H$5)*('Saisie des données'!$T$9:$T$208))","v":0},"/",{"$f":"IF($Q$11>0,H7/$Q$11,0)","v":0},{"$f":"SUMPRODUCT(('Saisie des données'!$B$9:$B$208=K$5)*('Saisie des données'!$T$9:$T$208))","v":0},"/",{"$f":"IF($Q$11>0,K7/$Q$11,0)","v":0},{"$f":"SUMPRODUCT(('Saisie des données'!$B$9:$B$208=N$5)*('Saisie des données'!$T$9:$T$208))","v":0},"/",{"$f":"IF($Q$11>0,N7/$Q$11,0)","v":0},{"$f":"B7+E7+H7+K7+N7","v":0},"/",{"$f":"D7+G7+J7+M7+P7","v":0}]
[{"$f":"Options!C47","v":"Sol denudé et foyer d'érosion"},{"$f":"SUMPRODUCT(('Saisie des données'!$B$9:$B$208=B$5)*('Saisie des données'!$S$9:$S$208))","v":0},"/",{"$f":"IF($Q$11>0,B8/$Q$11,0)","v":0},{"$f":"SUMPRODUCT(('Saisie des données'!$B$9:$B$208=E$5)*('Saisie des données'!$S$9:$S$208))","v":0},"/",{"$f":"IF($Q$11>0,E8/$Q$11,0)","v":0},{"$f":"SUMPRODUCT(('Saisie des données'!$B$9:$B$208=H$5)*('Saisie des données'!$S$9:$S$208))","v":0},"/",{"$f":"IF($Q$11>0,H8/$Q$11,0)","v":0},{"$f":"SUMPRODUCT(('Saisie des données'!$B$9:$B$208=K$5)*('Saisie des données'!$S$9:$S$208))","v":0},"/",{"$f":"IF($Q$11>0,K8/$Q$11,0)","v":0},{"$f":"SUMPRODUCT(('Saisie des données'!$B$9:$B$208=N$5)*('Saisie des données'!$S$9:$S$208))","v":0},"/",{"$f":"IF($Q$11>0,N8/$Q$11,0)","v":0},{"$f":"B8+E8+H8+K8+N8","v":0},"/",{"$f":"D8+G8+J8+M8+P8","v":0}]
[{"$f":"Options!C48","v":"Portion non perturbée ou sans structure"},{"$f":"SUMPRODUCT(('Saisie des données'!$B$9:$B$208=B$5)*('Saisie des données'!$C$9:$C$208))-B7-B8","v":0},"/",{"$f":"IF($Q$11>0,B9/$Q$11,0)","v":0},{"$f":"SUMPRODUCT(('Saisie des données'!$B$9:$B$208=E$5)*('Saisie des données'!$C$9:$C$208))-E7-E8","v":0},"/",{"$f":"IF($Q$11>0,E9/$Q$11,0)","v":0},{"$f":"SUMPRODUCT(('Saisie des données'!$B$9:$B$208=H$5)*('Saisie des données'!$C$9:$C$208))-H7-H8","v":0},"/",{"$f":"IF($Q$11>0,H9/$Q$11,0)","v":0},{"$f":"SUMPRODUCT(('Saisie des données'!$B$9:$B$208=K$5)*('Saisie des données'!$C$9:$C$208))-K7-K8","v":0},"/",{"$f":"IF($Q$11>0,K9/$Q$11,0)","v":0},{"$f":"SUMPRODUCT(('Saisie des données'!$B$9:$B$208=N$5)*('Saisie des données'!$C$9:$C$208))-N7-N8","v":0},"/",{"$f":"IF($Q$11>0,N9/$Q$11,0)","v":0},{"$f":"B9+E9+H9+K9+N9","v":0},"/",{"$f":"D9+G9+J9+M9+P9","v":0}]
[]
["Total",{"$f":"SUM(B7:B9)","v":0},"/",{"$f":"IF($Q$11>0,B11/$Q$11,0)","v":0},{"$f":"SUM(E7:E9)","v":0},"/",{"$f":"IF($Q$11>0,E11/$Q$11,0)","v":0},{"$f":"SUM(H7:H9)","v":0},"/",{"$f":"IF($Q$11>0,H11/$Q$11,0)","v":0},{"$f":"SUM(K7:K9)","v":0},"/",{"$f":"IF($Q$11>0,K11/$Q$11,0)","v":0},{"$f":"SUM(N7:N9)","v":0},"/",{"$f":"IF($Q$11>0,N11/$Q$11,0)","v":0},{"$f":"B11+E11+H11+K11+N11","v":0},"/",{"$f":"D11+G11+J11+M11+P11","v":0}]

{"sheet":"Classes de dégradation","index":7,"n_rows":12,"n_cols":5,"rows_kept":12,"cut":false,"hidden":true,"merged":[[0,0,0,5],[1,0,1,5]]}
[{"$f":"\"Tableau 5. \" & Options!C54","v":"Tableau 5. Importance des classes de dégradation du rivage"}]
[{"$f":"Options!C55","v":""}]
[]
["Classe",null,"Nombre de zones homogènes","Longueur de rive (m)","Importance relative (%)"]
[]
[{"$f":"Options!C57","v":"A (80% et plus du rivage non perturbé)"},null,{"$f":"COUNTIF('Saisie des données'!$V$9:$V$208,\">=0,8\")","v":0},{"$f":"SUMPRODUCT(('Saisie des données'!$V$9:$V$208>=80%)*('Saisie des données'!$C$9:$C$208))","v":0},{"$f":"IF($D$12>0,D6/$D$12,0)","v":0}]
[{"$f":"Options!C58","v":"B (60% à <80% du rivage non perturbé)"},null,{"$f":"COUNTIF('Saisie des données'!$V$9:$V$208,\">=0,6\")-COUNTIF('Saisie des données'!$V$9:$V$208,\">=0,8\")","v":0},{"$f":"SUMPRODUCT(('Saisie des données'!$V$9:$V$208>=60%)*('Saisie des données'!$V$9:$V$208<80%)*('Saisie des données'!$C$9:$C$208))","v":0},{"$f":"IF($D$12>0,D7/$D$12,0)","v":0}]
[{"$f":"Options!C59","v":"C (40% à <60% du rivage non perturbé)"},null,{"$f":"COUNTIF('Saisie des données'!$V$9:$V$208,\">=0,4\")-COUNTIF('Saisie des données'!$V$9:$V$208,\">=0,6\")","v":0},{"$f":"SUMPRODUCT(('Saisie des données'!$V$9:$V$208>=40%)*('Saisie des données'!$V$9:$V$208<60%)*('Saisie des données'!$C$9:$C$208))","v":0},{"$f":"IF($D$12>0,D8/$D$12,0)","v":0}]
[{"$f":"Options!C60","v":"D (20% à <40% du rivage non perturbé)"},null,{"$f":"COUNTIF('Saisie des données'!$V$9:$V$208,\">=0,2\")-COUNTIF('Saisie des données'!$V$9:$V$208,\">=0,4\")","v":0},{"$f":"SUMPRODUCT(('Saisie des données'!$V$9:$V$208>=20%)*('Saisie des données'!$V$9:$V$208<40%)*('Saisie des données'!$C$9:$C$208))","v":0},{"$f":"IF($D$12>0,D9/$D$12,0)","v":0}]
[{"$f":"Options!C61","v":"E (<20% du rivage non perturbé)"},null,{"$f":"COUNTIF('Saisie des données'!$V$9:$V$208,\"<0,2\")","v":0},{"$f":"SUMPRODUCT(('Saisie des données'!$V$9:$V$208<20%)*('Saisie des données'!$C$9:$C$208))","v":0},{"$f":"IF($D$12>0,D10/$D$12,0)","v":0}]
[]
["Total",null,{"$f":"SUM(C6:C10)","v":0},{"$f":"SUM(D6:D10)","v":0},{"$f":"SUM(E6:E10)","v":0}]

{"sheet":"Options","index":8,"n_rows":81,"n_cols":8,"rows_kept":81,"cut":false,"hidden":false,"merged":[[71,0,78,0],[71,1,72,1],[74,1,75,1],[71,2,72,2],[74,2,75,2],[80,1,81,1],[80,2,81,2],[77,1,78,1],[77,2,78,2],[0,6,0,7]]}
["Feuille","Champs ou cellules affectées","Valeur",null,null,null,"Choix de motifs pour graphiques"]
["Saisie des données","P1 P2 P3 P4 P5","Naturelle",null,null,null,"msoPattern5Percent",1]
[null,null,"Habitée",null,null,null,"msoPattern10Percent",2]
[null,null,"Infrastructures",null,null,null,"msoPattern20Percent",3]
[null,null,"Agriculture",null,null,null,"msoPattern25Percent",4]
[null,null,"Foresterie",null,null,null,"msoPattern30Percent",5]
[null,null,"Total",null,null,null,"msoPattern40Percent",6]
[null,null,null,null,null,null,"msoPattern50Percent",7]
["Utilisation du sol","Titre du tableau et figure",{"$f":"\"Répartition de l'utilisation du sol dans la bande riveraine\"&IF(YEAR(MIN('Saisie des données'!$L$9:$L$208))<>1900,\" (\"&YEAR(MIN('Saisie des données'!$L$9:$L$208))&\")\",\"\")","v":"Répartition de l'utilisation du sol dans la bande riveraine"},null,null,null,"msoPattern60Percent",8]
[null,null,{"$f":"Identification!$C$8 & IF('Saisie des données'!$C$4<>\"Un seul\",\" - Secteur \"& 'Saisie des données'!$C$4,\"\")","v":""},null,null,null,"msoPattern70Percent",9]
[null,"Couleurs du graphique",{"$f":"C2","v":"Naturelle"},"msoPatternWave",{"$f":"VLOOKUP(D11,$G$2:$H$49,2,FALSE)","v":48},48,"msoPattern75Percent",10]
[null,null,{"$f":"C3","v":"Habitée"},"msoPatternHorizontalBrick",{"$f":"VLOOKUP(D12,$G$2:$H$49,2,FALSE)","v":35},35,"msoPattern80Percent",11]
[null,null,{"$f":"C4","v":"Infrastructures"},"msoPatternSmallGrid",{"$f":"VLOOKUP(D13,$G$2:$H$49,2,FALSE)","v":23},23,"msoPattern90Percent",12]
[null,null,{"$f":"C5","v":"Agriculture"},"msoPatternDashedVertical",{"$f":"VLOOKUP(D14,$G$2:$H$49,2,FALSE)","v":31},31,"msoPatternDarkHorizontal",13]
[null,null,{"$f":"C6","v":"Foresterie"},"msoPatternDarkUpwardDiagonal",{"$f":"VLOOKUP(D15,$G$2:$H$49,2,FALSE)","v":16},16,"msoPatternDarkVertical",14]
[null,null,null,null,null,null,"msoPatternDarkDownwardDiagonal",15]
["Types d'aménagement","A7 A8 A9","Végétation naturelle",null,null,null,"msoPatternDarkUpwardDiagonal",16]
[null,null,"Végétation ornementale",null,null,null,"msoPatternSmallCheckerBoard",17]
[null,null,"Matériaux inertes",null,null,null,"msoPatternTrellis",18]
[null,null,null,null,null,null,"msoPatternLightHorizontal",19]
[null,"Titre du tableau et figure 2a",{"$f":"\"Importance des types d'aménagement dans la bande riveraine\"&IF(YEAR(MIN('Saisie des données'!$L$9:$L$208))<>1900,\" (\"&YEAR(MIN('Saisie des données'!$L$9:$L$208))&\")\",\"\")","v":"Importance des types d'aménagement dans la bande riveraine"},null,null,null,"msoPatternLightVertical",20]
[null,null,{"$f":"Identification!$C$8 & IF('Saisie des données'!$C$4<>\"Un seul\",\" - Secteur \"& 'Saisie des données'!$C$4,\"\")","v":""},null,null,null,"msoPatternLightDownwardDiagonal",21]
[null,"Figure 2b",{"$f":"\"Importance des types d'aménagement dans la bande riveraine par catégorie d'utilisation du sol\" & IF(YEAR(MIN('Saisie des données'!$L$9:$L$208))<>1900,\" (\"&YEAR(MIN('Saisie des données'!$L$9:$L$208))&\")\",\"\")","v":"Importance des types d'aménagement dans la bande riveraine par catégorie d'utilisation du sol"},null,null,null,"msoPatternLightUpwardDiagonal",22]
[null,"Couleurs graphiques",{"$f":"C17","v":"Végétation naturelle"},"msoPattern25Percent",{"$f":"VLOOKUP(D24,$G$2:$H$49,2,FALSE)","v":4},4,"msoPatternSmallGrid",23]
[null,null,{"$f":"C18","v":"Végétation ornementale"},"msoPatternSmallCheckerBoard",{"$f":"VLOOKUP(D25,$G$2:$H$49,2,FALSE)","v":17},17,"msoPatternDottedDiamond",24]
[null,null,{"$f":"C19","v":"Matériaux inertes"},"msoPatternWeave",{"$f":"VLOOKUP(D26,$G$2:$H$49,2,FALSE)","v":44},44,"msoPatternWideDownwardDiagonal",25]
[null,null,null,null,null,null,"msoPatternWideUpwardDiagonal",26]
["Classes d'aménagement","Titre du tableau et figure 3a",{"$f":"\"Importance des classes d'aménagement dans la bande riveraine\" &IF(YEAR(MIN('Saisie des données'!$L$9:$L$208))<>1900,\" (\"&YEAR(MIN('Saisie des données'!$L$9:$L$208))&\")\",\"\")","v":"Importance des classes d'aménagement dans la bande riveraine"},null,null,null,"msoPatternDashedUpwardDiagonal",27]
[null,null,{"$f":"Identification!$C$8 & IF('Saisie des données'!$C$4<>\"Un seul\",\" - Secteur \"& 'Saisie des données'!$C$4,\"\")","v":""},null,null,null,"msoPatternDashedDownwardDiagonal",28]
[null,null,null,null,null,null,"msoPatternNarrowVertical",29]
[null,"Définition des classes","A (80% et plus en végétation naturelle)","A (80% et plus)",null,null,"msoPatternNarrowHorizontal",30]
[null,null,"B (60% à <80% en végétation naturelle)","B (60% à <80%)",null,null,"msoPatternDashedVertical",31]
[null,null,"C (40% à <60% en végétation naturelle)","C (40% à <60%)",null,null,"msoPatternDashedHorizontal",32]
[null,null,"D (20% à <40% en végétation naturelle)","D (20% à <40%)",null,null,"msoPatternLargeConfetti",33]
[null,null,"E (<20% en végétation naturelle)","E (<20%)",null,null,"msoPatternLargeGrid",34]
[null,"Figure 3b",{"$f":"\"Importance des classes d'aménagement dans la bande riveraine par catégorie d'utilisation du sol\" & IF(YEAR(MIN('Saisie des données'!$L$9:$L$208))<>1900,\" (\"&YEAR(MIN('Saisie des données'!$L$9:$L$208))&\")\",\"\")","v":"Importance des classes d'aménagement dans la bande riveraine par catégorie d'utilisation du sol"},null,null,null,"msoPatternHorizontalBrick",35]
[null,"Couleurs graphiques",{"$f":"C31","v":"A (80% et plus en végétation naturelle)"},"msoPattern25Percent",{"$f":"VLOOKUP(D37,$G$2:$H$49,2,FALSE)","v":4},1,"msoPatternLargeCheckerBoard",36]
[null,null,{"$f":"C32","v":"B (60% à <80% en végétation naturelle)"},"msoPattern25Percent",{"$f":"VLOOKUP(D38,$G$2:$H$49,2,FALSE)","v":4},4,"msoPatternSmallConfetti",37]
[null,null,{"$f":"C33","v":"C (40% à <60% en végétation naturelle)"},"msoPatternSmallCheckerBoard",{"$f":"VLOOKUP(D39,$G$2:$H$49,2,FALSE)","v":17},17,"msoPatternZigZag",38]
[null,null,{"$f":"C34","v":"D (20% à <40% en végétation naturelle)"},"msoPatternLargeCheckerBoard",{"$f":"VLOOKUP(D40,$G$2:$H$49,2,FALSE)","v":36},36,"msoPatternSolidDiamond",39]
[null,null,{"$f":"C35","v":"E (<20% en végétation naturelle)"},"msoPatternLargeConfetti",{"$f":"VLOOKUP(D41,$G$2:$H$49,2,FALSE)","v":33},33,"msoPatternDiagonalBrick",40]
[null,null,null,null,null,null,"msoPatternOutlinedDiamond",41]
["Dégradation du rivage","Titre du tableau et figure 4a",{"$f":"\"Importance des signes de dégradation du rivage\" &IF(YEAR(MIN('Saisie des données'!$L$9:$L$208))<>1900,\" (\"&YEAR(MIN('Saisie des données'!$L$9:$L$208))&\")\",\"\")","v":"Importance des signes de dégradation du rivage"},null,null,null,"msoPatternPlaid",42]
[null,null,{"$f":"Identification!$C$8 & IF('Saisie des données'!$C$4<>\"Un seul\",\" - Secteur \"& 'Saisie des données'!$C$4,\"\")","v":""},null,null,null,"msoPatternSphere",43]
[null,null,null,null,null,null,"msoPatternWeave",44]
[null,"Descripteurs","Murets et remblais",null,null,null,"msoPatternDottedGrid",45]
[null,null,"Sol denudé et foyer d'érosion",null,null,null,"msoPatternDivot",46]
[null,null,"Portion non perturbée ou sans structure",null,null,null,"msoPatternShingle",47]
[null,"Figure 4b",{"$f":"\"Importance des signes de dégradation du rivage par catégorie d'utilisation du sol\" & IF(YEAR(MIN('Saisie des données'!$L$9:$L$208))<>1900,\" (\"&YEAR(MIN('Saisie des données'!$L$9:$L$208))&\")\",\"\")","v":"Importance des signes de dégradation du rivage par catégorie d'utilisation du sol"},null,null,null,"msoPatternWave",48]
[null,"Couleurs graphiques","Murets et remblais","msoPatternHorizontalBrick",{"$f":"VLOOKUP(D50,$G$2:$H$49,2,FALSE)","v":35},35]
[null,null,"Sol denudé et foyer d'érosion","msoPattern20Percent",{"$f":"VLOOKUP(D51,$G$2:$H$49,2,FALSE)","v":3},3]
[null,null,"Portion non perturbée ou sans structure","msoPatternLargeConfetti",{"$f":"VLOOKUP(D52,$G$2:$H$49,2,FALSE)","v":33},33]
[]
["Classes de dégradation","Titre du tableau et figure 5a",{"$f":"\"Importance des classes de dégradation du rivage\" &IF(YEAR(MIN('Saisie des données'!$L$9:$L$208))<>1900,\" (\"&YEAR(MIN('Saisie des données'!$L$9:$L$208))&\")\",\"\")","v":"Importance des classes de dégradation du rivage"}]
[null,null,{"$f":"Identification!$C$8 & IF('Saisie des données'!$C$4<>\"Un seul\",\" - Secteur \"& 'Saisie des données'!$C$4,\"\")","v":""}]
[]
[null,"Définition des classes","A (80% et plus du rivage non perturbé)","A (80% et plus)"]
[null,null,"B (60% à <80% du rivage non perturbé)","B (60% à <80%)"]
[null,null,"C (40% à <60% du rivage non perturbé)","C (40% à <60%)"]
[null,null,"D (20% à <40% du rivage non perturbé)","D (20% à <40%)"]
[null,null,"E (<20% du rivage non perturbé)","E (<20%)"]
[null,"Figure 5b",{"$f":"\"Importance des classes d'aménagement dans la bande riveraine par catégorie d'utilisation du sol\" & IF(YEAR(MIN('Saisie des données'!$L$9:$L$208))<>1900,\" (\"&YEAR(MIN('Saisie des données'!$L$9:$L$208))&\")\",\"\")","v":"Importance des classes d'aménagement dans la bande riveraine par catégorie d'utilisation du sol"}]
[null,"Couleurs graphiques",{"$f":"C57","v":"A (80% et plus du rivage non perturbé)"},"msoPattern25Percent",{"$f":"VLOOKUP(D63,$G$2:$H$49,2,FALSE)","v":4},1]
[null,null,{"$f":"C58","v":"B (60% à <80% du rivage non perturbé)"},"msoPatternWideUpwardDiagonal",{"$f":"VLOOKUP(D64,$G$2:$H$49,2,FALSE)","v":26},26]
[null,null,{"$f":"C59","v":"C (40% à <60% du rivage non perturbé)"},"msoPatternDarkVertical",{"$f":"VLOOKUP(D65,$G$2:$H$49,2,FALSE)","v":14},14]
[null,null,{"$f":"C60","v":"D (20% à <40% du rivage non perturbé)"},"msoPatternZigZag",{"$f":"VLOOKUP(D66,$G$2:$H$49,2,FALSE)","v":38},38]
[null,null,{"$f":"C61","v":"E (<20% du rivage non perturbé)"},"msoPatternOutlinedDiamond",{"$f":"VLOOKUP(D67,$G$2:$H$49,2,FALSE)","v":41},41]
[]
["Toutes","Couleur du fond","Texte"]
[null,"Profondeur de rive (m)",15]
[]
["ATTENTION: Pour un usage normal, ne pas modifier les valeurs par défaut.","Réactiver automatiquement la protection des feuilles (défaut=oui)","Oui"]
[]
[]
[null,"Bloquer l'événement  «Worksheet SelectionChange»  (défaut=non)","Non"]
[]
[]
[null,"Masquer figures et graphiques en l'absence de donnée (défaut =oui)","Oui"]
[]
[]
["Tous les graphiques","Activer le message relatif au Copier/coller des graphiques","Non"]

{"sheet":"Log","index":9,"n_rows":17,"n_cols":2,"rows_kept":17,"cut":false,"hidden":false,"merged":[[0,0,0,1]]}
["Journal des modifications apportées à l'outil"]
[]
["Date","Commentaires"]
["Aut. 2009","Codage de la macro CTRL-G. Cette macro ouvre une nouvelle feuille Excel et y copie tous les graphiques, lesquelles ne sont pas protégés et donc éditables."]
[null,"Possibilité de problèmes de compatibilité avec les version postérieures à Excel 2002. Un message d'avertissement va s'afficher à l'ouverture du fichier pour les"]
[null,"utilisateurs concernés seulement."]
["2010-01-28","Dans \"Saisie des données\" le nombre de zones homogènes possibles a été augmenté de 50 à 200."]
["2010-02-02","Dans \"Saisie des données\", colonne B, le code de la liste déroulante a été revu pour mieux gérer les choix possibles. Logique complexe. Je pense que c'est correct…"]
["2010-02-04","Tous les graphiques en pointes de tarte: ajout de code pour ne pas tenir compte des séries aux données nulles (les 0%). La légende en tient compte au besoin."]
[null,"Toutes les cellules avec une formule de division sont testées avant pour éviter les #DIV/0!."]
["2010-02-10","Dans Options, on pouvait changer les couleurs des graphiques. On peut aussi maintenant changer le motif."]
["2010-05-29","Dans Options, toutes les cellules étaient verrouillées. Les colonnes C et D ne sont pas cencées l'être. Cela a été corrigé."]
["2010-10-20","Dans Saisie des données, la validation des colonnes où l'on doit entrer un % a été activitée pour bloquer l'entrée d'une valeur texte telle 4.2 au lieu de 4,2…"]
["2010-10-20","Dans Saisie des données, col F G H, un 0 est ajouté si la cellule est vide et que le total est 100."]
["2012-09-26","MAJ du logo du ministère"]
["2014-08-14","Conversion pour Office (Excel) 2013"]
["2019-11-12","MAJ diverse (logo du ministère, adresse courriel…)"]

{"sheet":"4GIS","index":10,"n_rows":201,"n_cols":9,"rows_kept":201,"cut":false,"hidden":true,"merged":[]}
["NoRsv","Zone","CatUtil","Longueur","LatDeb","LongDeb","LatFin","LongFin","Autres infos à ajouter"]
["=Identification!$C$10",{"$f":"'Saisie des données'!A9","v":1},{"$f":"'Saisie des données'!B9","v":0},{"$f":"'Saisie des données'!C9","v":0},{"$f":"'Saisie des données'!D9","v":0},{"$f":"'Saisie des données'!E9","v":0},{"$f":"'Saisie des données'!D10","v":0},{"$f":"'Saisie des données'!E10","v":0}]
["=Identification!$C$10",{"$f":"'Saisie des données'!A10","v":2},{"$f":"'Saisie des données'!B10","v":0},{"$f":"'Saisie des données'!C10","v":0},{"$f":"'Saisie des données'!D10","v":0},{"$f":"'Saisie des données'!E10","v":0},{"$f":"'Saisie des données'!D11","v":0},{"$f":"'Saisie des données'!E11","v":0}]
["=Identification!$C$10",{"$f":"'Saisie des données'!A11","v":3},{"$f":"'Saisie des données'!B11","v":0},{"$f":"'Saisie des données'!C11","v":0},{"$f":"'Saisie des données'!D11","v":0},{"$f":"'Saisie des données'!E11","v":0},{"$f":"'Saisie des données'!D12","v":0},{"$f":"'Saisie des données'!E12","v":0}]
["=Identification!$C$10",{"$f":"'Saisie des données'!A12","v":4},{"$f":"'Saisie des données'!B12","v":0},{"$f":"'Saisie des données'!C12","v":0},{"$f":"'Saisie des données'!D12","v":0},{"$f":"'Saisie des données'!E12","v":0},{"$f":"'Saisie des données'!D13","v":0},{"$f":"'Saisie des données'!E13","v":0}]
["=Identification!$C$10",{"$f":"'Saisie des données'!A13","v":5},{"$f":"'Saisie des données'!B13","v":0},{"$f":"'Saisie des données'!C13","v":0},{"$f":"'Saisie des données'!D13","v":0},{"$f":"'Saisie des données'!E13","v":0},{"$f":"'Saisie des données'!D14","v":0},{"$f":"'Saisie des données'!E14","v":0}]
["=Identification!$C$10",{"$f":"'Saisie des données'!A14","v":6},{"$f":"'Saisie des données'!B14","v":0},{"$f":"'Saisie des données'!C14","v":0},{"$f":"'Saisie des données'!D14","v":0},{"$f":"'Saisie des données'!E14","v":0},{"$f":"'Saisie des données'!D15","v":0},{"$f":"'Saisie des données'!E15","v":0}]
["=Identification!$C$10",{"$f":"'Saisie des données'!A15","v":7},{"$f":"'Saisie des données'!B15","v":0},{"$f":"'Saisie des données'!C15","v":0},{"$f":"'Saisie des données'!D15","v":0},{"$f":"'Saisie des données'!E15","v":0},{"$f":"'Saisie des données'!D16","v":0},{"$f":"'Saisie des données'!E16","v":0}]
["=Identification!$C$10",{"$f":"'Saisie des données'!A16","v":8},{"$f":"'Saisie des données'!B16","v":0},{"$f":"'Saisie des données'!C16","v":0},{"$f":"'Saisie des données'!D16","v":0},{"$f":"'Saisie des données'!E16","v":0},{"$f":"'Saisie des données'!D17","v":0},{"$f":"'Saisie des données'!E17","v":0}]
["=Identification!$C$10",{"$f":"'Saisie des données'!A17","v":9},{"$f":"'Saisie des données'!B17","v":0},{"$f":"'Saisie des données'!C17","v":0},{"$f":"'Saisie des données'!D17","v":0},{"$f":"'Saisie des données'!E17","v":0},{"$f":"'Saisie des données'!D18","v":0},{"$f":"'Saisie des données'!E18","v":0}]
["=Identification!$C$10",{"$f":"'Saisie des données'!A18","v":10},{"$f":"'Saisie des données'!B18","v":0},{"$f":"'Saisie des données'!C18","v":0},{"$f":"'Saisie des données'!D18","v":0},{"$f":"'Saisie des données'!E18","v":0},{"$f":"'Saisie des données'!D19","v":0},{"$f":"'Saisie des données'!E19","v":0}]
["=Identification!$C$10",{"$f":"'Saisie des données'!A19","v":11},{"$f":"'Saisie des données'!B19","v":0},{"$f":"'Saisie des données'!C19","v":0},{"$f":"'Saisie des données'!D19","v":0},{"$f":"'Saisie des données'!E19","v":0},{"$f":"'Saisie des données'!D20","v":0},{"$f":"'Saisie des données'!E20","v":0}]
["=Identification!$C$10",{"$f":"'Saisie des données'!A20","v":12},{"$f":"'Saisie des données'!B20","v":0},{"$f":"'Saisie des données'!C20","v":0},{"$f":"'Saisie des données'!D20","v":0},{"$f":"'Saisie des données'!E20","v":0},{"$f":"'Saisie des données'!D21","v":0},{"$f":"'Saisie des données'!E21","v":0}]
["=Identification!$C$10",{"$f":"'Saisie des données'!A21","v":13},{"$f":"'Saisie des données'!B21","v":0},{"$f":"'Saisie des données'!C21","v":0},{"$f":"'Saisie des données'!D21","v":0},{"$f":"'Saisie des données'!E21","v":0},{"$f":"'Saisie des données'!D22","v":0},{"$f":"'Saisie des données'!E22","v":0}]
["=Identification!$C$10",{"$f":"'Saisie des données'!A22","v":14},{"$f":"'Saisie des données'!B22","v":0},{"$f":"'Saisie des données'!C22","v":0},{"$f":"'Saisie des données'!D22","v":0},{"$f":"'Saisie des données'!E22","v":0},{"$f":"'Saisie des données'!D23","v":0},{"$f":"'Saisie des données'!E23","v":0}]
["=Identification!$C$10",{"$f":"'Saisie des données'!A23","v":15},{"$f":"'Saisie des données'!B23","v":0},{"$f":"'Saisie des données'!C23","v":0},{"$f":"'Saisie des données'!D23","v":0},{"$f":"'Saisie des données'!E23","v":0},{"$f":"'Saisie des données'!D24","v":0},{"$f":"'Saisie des données'!E24","v":0}]
["=Identification!$C$10",{"$f":"'Saisie des données'!A24","v":16},{"$f":"'Saisie des données'!B24","v":0},{"$f":"'Saisie des données'!C24","v":0},{"$f":"'Saisie des données'!D24","v":0},{"$f":"'Saisie des données'!E24","v":0},{"$f":"'Saisie des données'!D25","v":0},{"$f":"'Saisie des données'!E25","v":0}]
["=Identification!$C$10",{"$f":"'Saisie des données'!A25","v":17},{"$f":"'Saisie des données'!B25","v":0},{"$f":"'Saisie des données'!C25","v":0},{"$f":"'Saisie des données'!D25","v":0},{"$f":"'Saisie des données'!E25","v":0},{"$f":"'Saisie des données'!D26","v":0},{"$f":"'Saisie des données'!E26","v":0}]
["=Identification!$C$10",{"$f":"'Saisie des données'!A26","v":18},{"$f":"'Saisie des données'!B26","v":0},{"$f":"'Saisie des données'!C26","v":0},{"$f":"'Saisie des données'!D26","v":0},{"$f":"'Saisie des données'!E26","v":0},{"$f":"'Saisie des données'!D27","v":0},{"$f":"'Saisie des données'!E27","v":0}]
["=Identification!$C$10",{"$f":"'Saisie des données'!A27","v":19},{"$f":"'Saisie des données'!B27","v":0},{"$f":"'Saisie des données'!C27","v":0},{"$f":"'Saisie des données'!D27","v":0},{"$f":"'Saisie des données'!E27","v":0},{"$f":"'Saisie des données'!D28","v":0},{"$f":"'Saisie des données'!E28","v":0}]
["=Identification!$C$10",{"$f":"'Saisie des données'!A28","v":20},{"$f":"'Saisie des données'!B28","v":0},{"$f":"'Saisie des données'!C28","v":0},{"$f":"'Saisie des données'!D28","v":0},{"$f":"'Saisie des données'!E28","v":0},{"$f":"'Saisie des données'!D29","v":0},{"$f":"'Saisie des données'!E29","v":0}]
["=Identification!$C$10",{"$f":"'Saisie des données'!A29","v":21},{"$f":"'Saisie des données'!B29","v":0},{"$f":"'Saisie des données'!C29","v":0},{"$f":"'Saisie des données'!D29","v":0},{"$f":"'Saisie des données'!E29","v":0},{"$f":"'Saisie des données'!D30","v":0},{"$f":"'Saisie des données'!E30","v":0}]
["=Identification!$C$10",{"$f":"'Saisie des données'!A30","v":22},{"$f":"'Saisie des données'!B30","v":0},{"$f":"'Saisie des données'!C30","v":0},{"$f":"'Saisie des données'!D30","v":0},{"$f":"'Saisie des données'!E30","v":0},{"$f":"'Saisie des données'!D31","v":0},{"$f":"'Saisie des données'!E31","v":0}]
["=Identification!$C$10",{"$f":"'Saisie des données'!A31","v":23},{"$f":"'Saisie des données'!B31","v":0},{"$f":"'Saisie des données'!C31","v":0},{"$f":"'Saisie des données'!D31","v":0},{"$f":"'Saisie des données'!E31","v":0},{"$f":"'Saisie des données'!D32","v":0},{"$f":"'Saisie des données'!E32","v":0}]
["=Identification!$C$10",{"$f":"'Saisie des données'!A32","v":24},{"$f":"'Saisie des données'!B32","v":0},{"$f":"'Saisie des données'!C32","v":0},{"$f":"'Saisie des données'!D32","v":0},{"$f":"'Saisie des données'!E32","v":0},{"$f":"'Saisie des données'!D33","v":0},{"$f":"'Saisie des données'!E33","v":0}]
["=Identification!$C$10",{"$f":"'Saisie des données'!A33","v":25},{"$f":"'Saisie des données'!B33","v":0},{"$f":"'Saisie des données'!C33","v":0},{"$f":"'Saisie des données'!D33","v":0},{"$f":"'Saisie des données'!E33","v":0},{"$f":"'Saisie des données'!D34","v":0},{"$f":"'Saisie des données'!E34","v":0}]
["=Identification!$C$10",{"$f":"'Saisie des données'!A34","v":26},{"$f":"'Saisie des données'!B34","v":0},{"$f":"'Saisie des données'!C34","v":0},{"$f":"'Saisie des données'!D34","v":0},{"$f":"'Saisie des données'!E34","v":0},{"$f":"'Saisie des données'!D35","v":0},{"$f":"'Saisie des données'!E35","v":0}]
["=Identification!$C$10",{"$f":"'Saisie des données'!A35","v":27},{"$f":"'Saisie des données'!B35","v":0},{"$f":"'Saisie des données'!C35","v":0},{"$f":"'Saisie des données'!D35","v":0},{"$f":"'Saisie des données'!E35","v":0},{"$f":"'Saisie des données'!D36","v":0},{"$f":"'Saisie des données'!E36","v":0}]
["=Identification!$C$10",{"$f":"'Saisie des données'!A36","v":28},{"$f":"'Saisie des données'!B36","v":0},{"$f":"'Saisie des données'!C36","v":0},{"$f":"'Saisie des données'!D36","v":0},{"$f":"'Saisie des données'!E36","v":0},{"$f":"'Saisie des données'!D37","v":0},{"$f":"'Saisie des données'!E37","v":0}]
["=Identification!$C$10",{"$f":"'Saisie des données'!A37","v":29},{"$f":"'Saisie des données'!B37","v":0},{"$f":"'Saisie des données'!C37","v":0},{"$f":"'Saisie des données'!D37","v":0},{"$f":"'Saisie des données'!E37","v":0},{"$f":"'Saisie des données'!D38","v":0},{"$f":"'Saisie des données'!E38","v":0}]
["=Identification!$C$10",{"$f":"'Saisie des données'!A38","v":30},{"$f":"'Saisie des données'!B38","v":0},{"$f":"'Saisie des données'!C38","v":0},{"$f":"'Saisie des données'!D38","v":0},{"$f":"'Saisie des données'!E38","v":0},{"$f":"'Saisie des données'!D39","v":0},{"$f":"'Saisie des données'!E39","v":0}]
["=Identification!$C$10",{"$f":"'Saisie des données'!A39","v":31},{"$f":"'Saisie des données'!B39","v":0},{"$f":"'Saisie des données'!C39","v":0},{"$f":"'Saisie des données'!D39","v":0},{"$f":"'Saisie des données'!E39","v":0},{"$f":"'Saisie des données'!D40","v":0},{"$f":"'Saisie des données'!E40","v":0}]
["=Identification!$C$10",{"$f":"'Saisie des données'!A40","v":32},{"$f":"'Saisie des données'!B40","v":0},{"$f":"'Saisie des données'!C40","v":0},{"$f":"'Saisie des données'!D40","v":0},{"$f":"'Saisie des données'!E40","v":0},{"$f":"'Saisie des données'!D41","v":0},{"$f":"'Saisie des données'!E41","v":0}]
["=Identification!$C$10",{"$f":"'Saisie des données'!A41","v":33},{"$f":"'Saisie des données'!B41","v":0},{"$f":"'Saisie des données'!C41","v":0},{"$f":"'Saisie des données'!D41","v":0},{"$f":"'Saisie des données'!E41","v":0},{"$f":"'Saisie des données'!D42","v":0},{"$f":"'Saisie des données'!E42","v":0}]
["=Identification!$C$10",{"$f":"'Saisie des données'!A42","v":34},{"$f":"'Saisie des données'!B42","v":0},{"$f":"'Saisie des données'!C42","v":0},{"$f":"'Saisie des données'!D42","v":0},{"$f":"'Saisie des données'!E42","v":0},{"$f":"'Saisie des données'!D43","v":0},{"$f":"'Saisie des données'!E43","v":0}]
["=Identification!$C$10",{"$f":"'Saisie des données'!A43","v":35},{"$f":"'Saisie des données'!B43","v":0},{"$f":"'Saisie des données'!C43","v":0},{"$f":"'Saisie des données'!D43","v":0},{"$f":"'Saisie des données'!E43","v":0},{"$f":"'Saisie des données'!D44","v":0},{"$f":"'Saisie des données'!E44","v":0}]
["=Identification!$C$10",{"$f":"'Saisie des données'!A44","v":36},{"$f":"'Saisie des données'!B44","v":0},{"$f":"'Saisie des données'!C44","v":0},{"$f":"'Saisie des données'!D44","v":0},{"$f":"'Saisie des données'!E44","v":0},{"$f":"'Saisie des données'!D45","v":0},{"$f":"'Saisie des données'!E45","v":0}]
["=Identification!$C$10",{"$f":"'Saisie des données'!A45","v":37},{"$f":"'Saisie des données'!B45","v":0},{"$f":"'Saisie des données'!C45","v":0},{"$f":"'Saisie des données'!D45","v":0},{"$f":"'Saisie des données'!E45","v":0},{"$f":"'Saisie des données'!D46","v":0},{"$f":"'Saisie des données'!E46","v":0}]
["=Identification!$C$10",{"$f":"'Saisie des données'!A46","v":38},{"$f":"'Saisie des données'!B46","v":0},{"$f":"'Saisie des données'!C46","v":0},{"$f":"'Saisie des données'!D46","v":0},{"$f":"'Saisie des données'!E46","v":0},{"$f":"'Saisie des données'!D47","v":0},{"$f":"'Saisie des données'!E47","v":0}]
["=Identification!$C$10",{"$f":"'Saisie des données'!A47","v":39},{"$f":"'Saisie des données'!B47","v":0},{"$f":"'Saisie des données'!C47","v":0},{"$f":"'Saisie des données'!D47","v":0},{"$f":"'Saisie des données'!E47","v":0},{"$f":"'Saisie des données'!D48","v":0},{"$f":"'Saisie des données'!E48","v":0}]
["=Identification!$C$10",{"$f":"'Saisie des données'!A48","v":40},{"$f":"'Saisie des données'!B48","v":0},{"$f":"'Saisie des données'!C48","v":0},{"$f":"'Saisie des données'!D48","v":0},{"$f":"'Saisie des données'!E48","v":0},{"$f":"'Saisie des données'!D49","v":0},{"$f":"'Saisie des données'!E49","v":0}]
["=Identification!$C$10",{"$f":"'Saisie des données'!A49","v":41},{"$f":"'Saisie des données'!B49","v":0},{"$f":"'Saisie des données'!C49","v":0},{"$f":"'Saisie des données'!D49","v":0},{"$f":"'Saisie des données'!E49","v":0},{"$f":"'Saisie des données'!D50","v":0},{"$f":"'Saisie des données'!E50","v":0}]
["=Identification!$C$10",{"$f":"'Saisie des données'!A50","v":42},{"$f":"'Saisie des données'!B50","v":0},{"$f":"'Saisie des données'!C50","v":0},{"$f":"'Saisie des données'!D50","v":0},{"$f":"'Saisie des données'!E50","v":0},{"$f":"'Saisie des données'!D51","v":0},{"$f":"'Saisie des données'!E51","v":0}]
["=Identification!$C$10",{"$f":"'Saisie des données'!A51","v":43},{"$f":"'Saisie des données'!B51","v":0},{"$f":"'Saisie des données'!C51","v":0},{"$f":"'Saisie des données'!D51","v":0},{"$f":"'Saisie des données'!E51","v":0},{"$f":"'Saisie des données'!D52","v":0},{"$f":"'Saisie des données'!E52","v":0}]
["=Identification!$C$10",{"$f":"'Saisie des données'!A52","v":44},{"$f":"'Saisie des données'!B52","v":0},{"$f":"'Saisie des données'!C52","v":0},{"$f":"'Saisie des données'!D52","v":0},{"$f":"'Saisie des données'!E52","v":0},{"$f":"'Saisie des données'!D53","v":0},{"$f":"'Saisie des données'!E53","v":0}]
["=Identification!$C$10",{"$f":"'Saisie des données'!A53","v":45},{"$f":"'Saisie des données'!B53","v":0},{"$f":"'Saisie des données'!C53","v":0},{"$f":"'Saisie des données'!D53","v":0},{"$f":"'Saisie des données'!E53","v":0},{"$f":"'Saisie des données'!D54","v":0},{"$f":"'Saisie des données'!E54","v":0}]
["=Identification!$C$10",{"$f":"'Saisie des données'!A54","v":46},{"$f":"'Saisie des données'!B54","v":0},{"$f":"'Saisie des données'!C54","v":0},{"$f":"'Saisie des données'!D54","v":0},{"$f":"'Saisie des données'!E54","v":0},{"$f":"'Saisie des données'!D55","v":0},{"$f":"'Saisie des données'!E55","v":0}]
["=Identification!$C$10",{"$f":"'Saisie des données'!A55","v":47},{"$f":"'Saisie des données'!B55","v":0},{"$f":"'Saisie des données'!C55","v":0},{"$f":"'Saisie des données'!D55","v":0},{"$f":"'Saisie des données'!E55","v":0},{"$f":"'Saisie des données'!D56","v":0},{"$f":"'Saisie des données'!E56","v":0}]
["=Identification!$C$10",{"$f":"'Saisie des données'!A56","v":48},{"$f":"'Saisie des données'!B56","v":0},{"$f":"'Saisie des données'!C56","v":0},{"$f":"'Saisie des données'!D56","v":0},{"$f":"'Saisie des données'!E56","v":0},{"$f":"'Saisie des données'!D57","v":0},{"$f":"'Saisie des données'!E57","v":0}]
["=Identification!$C$10",{"$f":"'Saisie des données'!A57","v":49},{"$f":"'Saisie des données'!B57","v":0},{"$f":"'Saisie des données'!C57","v":0},{"$f":"'Saisie des données'!D57","v":0},{"$f":"'Saisie des données'!E57","v":0},{"$f":"'Saisie des données'!D58","v":0},{"$f":"'Saisie des données'!E58","v":0}]
["=Identification!$C$10",{"$f":"'Saisie des données'!A58","v":50},{"$f":"'Saisie des données'!B58","v":0},{"$f":"'Saisie des données'!C58","v":0},{"$f":"'Saisie des données'!D58","v":0},{"$f":"'Saisie des données'!E58","v":0},{"$f":"'Saisie des données'!D59","v":0},{"$f":"'Saisie des données'!E59","v":0}]
["=Identification!$C$10",{"$f":"'Saisie des données'!A59","v":51},{"$f":"'Saisie des données'!B59","v":0},{"$f":"'Saisie des données'!C59","v":0},{"$f":"'Saisie des données'!D59","v":0},{"$f":"'Saisie des données'!E59","v":0},{"$f":"'Saisie des données'!D60","v":0},{"$f":"'Saisie des données'!E60","v":0}]
["=Identification!$C$10",{"$f":"'Saisie des données'!A60","v":52},{"$f":"'Saisie des données'!B60","v":0},{"$f":"'Saisie des données'!C60","v":0},{"$f":"'Saisie des données'!D60","v":0},{"$f":"'Saisie des données'!E60","v":0},{"$f":"'Saisie des données'!D61","v":0},{"$f":"'Saisie des données'!E61","v":0}]
["=Identification!$C$10",{"$f":"'Saisie des données'!A61","v":53},{"$f":"'Saisie des données'!B61","v":0},{"$f":"'Saisie des données'!C61","v":0},{"$f":"'Saisie des données'!D61","v":0},{"$f":"'Saisie des données'!E61","v":0},{"$f":"'Saisie des données'!D62","v":0},{"$f":"'Saisie des données'!E62","v":0}]
["=Identification!$C$10",{"$f":"'Saisie des données'!A62","v":54},{"$f":"'Saisie des données'!B62","v":0},{"$f":"'Saisie des données'!C62","v":0},{"$f":"'Saisie des données'!D62","v":0},{"$f":"'Saisie des données'!E62","v":0},{"$f":"'Saisie des données'!D63","v":0},{"$f":"'Saisie des données'!E63","v":0}]
["=Identification!$C$10",{"$f":"'Saisie des données'!A63","v":55},{"$f":"'Saisie des données'!B63","v":0},{"$f":"'Saisie des données'!C63","v":0},{"$f":"'Saisie des données'!D63","v":0},{"$f":"'Saisie des données'!E63","v":0},{"$f":"'Saisie des données'!D64","v":0},{"$f":"'Saisie des données'!E64","v":0}]
["=Identification!$C$10",{"$f":"'Saisie des données'!A64","v":56},{"$f":"'Saisie des données'!B64","v":0},{"$f":"'Saisie des données'!C64","v":0},{"$f":"'Saisie des données'!D64","v":0},{"$f":"'Saisie des données'!E64","v":0},{"$f":"'Saisie des données'!D65","v":0},{"$f":"'Saisie des données'!E65","v":0}]
["=Identification!$C$10",{"$f":"'Saisie des données'!A65","v":57},{"$f":"'Saisie des données'!B65","v":0},{"$f":"'Saisie des données'!C65","v":0},{"$f":"'Saisie des données'!D65","v":0},{"$f":"'Saisie des données'!E65","v":0},{"$f":"'Saisie des données'!D66","v":0},{"$f":"'Saisie des données'!E66","v":0}]
["=Identification!$C$10",{"$f":"'Saisie des données'!A66","v":58},{"$f":"'Saisie des données'!B66","v":0},{"$f":"'Saisie des données'!C66","v":0},{"$f":"'Saisie des données'!D66","v":0},{"$f":"'Saisie des données'!E66","v":0},{"$f":"'Saisie des données'!D67","v":0},{"$f":"'Saisie des données'!E67","v":0}]
["=Identification!$C$10",{"$f":"'Saisie des données'!A67","v":59},{"$f":"'Saisie des données'!B67","v":0},{"$f":"'Saisie des données'!C67","v":0},{"$f":"'Saisie des données'!D67","v":0},{"$f":"'Saisie des données'!E67","v":0},{"$f":"'Saisie des données'!D68","v":0},{"$f":"'Saisie des données'!E68","v":0}]
["=Identification!$C$10",{"$f":"'Saisie des données'!A68","v":60},{"$f":"'Saisie des données'!B68","v":0},{"$f":"'Saisie des données'!C68","v":0},{"$f":"'Saisie des données'!D68","v":0},{"$f":"'Saisie des données'!E68","v":0},{"$f":"'Saisie des données'!D69","v":0},{"$f":"'Saisie des données'!E69","v":0}]
["=Identification!$C$10",{"$f":"'Saisie des données'!A69","v":61},{"$f":"'Saisie des données'!B69","v":0},{"$f":"'Saisie des données'!C69","v":0},{"$f":"'Saisie des données'!D69","v":0},{"$f":"'Saisie des données'!E69","v":0},{"$f":"'Saisie des données'!D70","v":0},{"$f":"'Saisie des données'!E70","v":0}]
["=Identification!$C$10",{"$f":"'Saisie des données'!A70","v":62},{"$f":"'Saisie des données'!B70","v":0},{"$f":"'Saisie des données'!C70","v":0},{"$f":"'Saisie des données'!D70","v":0},{"$f":"'Saisie des données'!E70","v":0},{"$f":"'Saisie des données'!D71","v":0},{"$f":"'Saisie des données'!E71","v":0}]
["=Identification!$C$10",{"$f":"'Saisie des données'!A71","v":63},{"$f":"'Saisie des données'!B71","v":0},{"$f":"'Saisie des données'!C71","v":0},{"$f":"'Saisie des données'!D71","v":0},{"$f":"'Saisie des données'!E71","v":0},{"$f":"'Saisie des données'!D72","v":0},{"$f":"'Saisie des données'!E72","v":0}]
["=Identification!$C$10",{"$f":"'Saisie des données'!A72","v":64},{"$f":"'Saisie des données'!B72","v":0},{"$f":"'Saisie des données'!C72","v":0},{"$f":"'Saisie des données'!D72","v":0},{"$f":"'Saisie des données'!E72","v":0},{"$f":"'Saisie des données'!D73","v":0},{"$f":"'Saisie des données'!E73","v":0}]
["=Identification!$C$10",{"$f":"'Saisie des données'!A73","v":65},{"$f":"'Saisie des données'!B73","v":0},{"$f":"'Saisie des données'!C73","v":0},{"$f":"'Saisie des données'!D73","v":0},{"$f":"'Saisie des données'!E73","v":0},{"$f":"'Saisie des données'!D74","v":0},{"$f":"'Saisie des données'!E74","v":0}]
["=Identification!$C$10",{"$f":"'Saisie des données'!A74","v":66},{"$f":"'Saisie des données'!B74","v":0},{"$f":"'Saisie des données'!C74","v":0},{"$f":"'Saisie des données'!D74","v":0},{"$f":"'Saisie des données'!E74","v":0},{"$f":"'Saisie des données'!D75","v":0},{"$f":"'Saisie des données'!E75","v":0}]
["=Identification!$C$10",{"$f":"'Saisie des données'!A75","v":67},{"$f":"'Saisie des données'!B75","v":0},{"$f":"'Saisie des données'!C75","v":0},{"$f":"'Saisie des données'!D75","v":0},{"$f":"'Saisie des données'!E75","v":0},{"$f":"'Saisie des données'!D76","v":0},{"$f":"'Saisie des données'!E76","v":0}]
["=Identification!$C$10",{"$f":"'Saisie des données'!A76","v":68},{"$f":"'Saisie des données'!B76","v":0},{"$f":"'Saisie des données'!C76","v":0},{"$f":"'Saisie des données'!D76","v":0},{"$f":"'Saisie des données'!E76","v":0},{"$f":"'Saisie des données'!D77","v":0},{"$f":"'Saisie des données'!E77","v":0}]
["=Identification!$C$10",{"$f":"'Saisie des données'!A77","v":69},{"$f":"'Saisie des données'!B77","v":0},{"$f":"'Saisie des données'!C77","v":0},{"$f":"'Saisie des données'!D77","v":0},{"$f":"'Saisie des données'!E77","v":0},{"$f":"'Saisie des données'!D78","v":0},{"$f":"'Saisie des données'!E78","v":0}]
["=Identification!$C$10",{"$f":"'Saisie des données'!A78","v":70},{"$f":"'Saisie des données'!B78","v":0},{"$f":"'Saisie des données'!C78","v":0},{"$f":"'Saisie des données'!D78","v":0},{"$f":"'Saisie des données'!E78","v":0},{"$f":"'Saisie des données'!D79","v":0},{"$f":"'Saisie des données'!E79","v":0}]
["=Identification!$C$10",{"$f":"'Saisie des données'!A79","v":71},{"$f":"'Saisie des données'!B79","v":0},{"$f":"'Saisie des données'!C79","v":0},{"$f":"'Saisie des données'!D79","v":0},{"$f":"'Saisie des données'!E79","v":0},{"$f":"'Saisie des données'!D80","v":0},{"$f":"'Saisie des données'!E80","v":0}]
["=Identification!$C$10",{"$f":"'Saisie des données'!A80","v":72},{"$f":"'Saisie des données'!B80","v":0},{"$f":"'Saisie des données'!C80","v":0},{"$f":"'Saisie des données'!D80","v":0},{"$f":"'Saisie des données'!E80","v":0},{"$f":"'Saisie des données'!D81","v":0},{"$f":"'Saisie des données'!E81","v":0}]
["=Identification!$C$10",{"$f":"'Saisie des données'!A81","v":73},{"$f":"'Saisie des données'!B81","v":0},{"$f":"'Saisie des données'!C81","v":0},{"$f":"'Saisie des données'!D81","v":0},{"$f":"'Saisie des données'!E81","v":0},{"$f":"'Saisie des données'!D82","v":0},{"$f":"'Saisie des données'!E82","v":0}]
["=Identification!$C$10",{"$f":"'Saisie des données'!A82","v":74},{"$f":"'Saisie des données'!B82","v":0},{"$f":"'Saisie des données'!C82","v":0},{"$f":"'Saisie des données'!D82","v":0},{"$f":"'Saisie des données'!E82","v":0},{"$f":"'Saisie des données'!D83","v":0},{"$f":"'Saisie des données'!E83","v":0}]
["=Identification!$C$10",{"$f":"'Saisie des données'!A83","v":75},{"$f":"'Saisie des données'!B83","v":0},{"$f":"'Saisie des données'!C83","v":0},{"$f":"'Saisie des données'!D83","v":0},{"$f":"'Saisie des données'!E83","v":0},{"$f":"'Saisie des données'!D84","v":0},{"$f":"'Saisie des données'!E84","v":0}]
["=Identification!$C$10",{"$f":"'Saisie des données'!A84","v":76},{"$f":"'Saisie des données'!B84","v":0},{"$f":"'Saisie des données'!C84","v":0},{"$f":"'Saisie des données'!D84","v":0},{"$f":"'Saisie des données'!E84","v":0},{"$f":"'Saisie des données'!D85","v":0},{"$f":"'Saisie des données'!E85","v":0}]
["=Identification!$C$10",{"$f":"'Saisie des données'!A85","v":77},{"$f":"'Saisie des données'!B85","v":0},{"$f":"'Saisie des données'!C85","v":0},{"$f":"'Saisie des données'!D85","v":0},{"$f":"'Saisie des données'!E85","v":0},{"$f":"'Saisie des données'!D86","v":0},{"$f":"'Saisie des données'!E86","v":0}]
["=Identification!$C$10",{"$f":"'Saisie des données'!A86","v":78},{"$f":"'Saisie des données'!B86","v":0},{"$f":"'Saisie des données'!C86","v":0},{"$f":"'Saisie des données'!D86","v":0},{"$f":"'Saisie des données'!E86","v":0},{"$f":"'Saisie des données'!D87","v":0},{"$f":"'Saisie des données'!E87","v":0}]
["=Identification!$C$10",{"$f":"'Saisie des données'!A87","v":79},{"$f":"'Saisie des données'!B87","v":0},{"$f":"'Saisie des données'!C87","v":0},{"$f":"'Saisie des données'!D87","v":0},{"$f":"'Saisie des données'!E87","v":0},{"$f":"'Saisie des données'!D88","v":0},{"$f":"'Saisie des données'!E88","v":0}]
["=Identification!$C$10",{"$f":"'Saisie des données'!A88","v":80},{"$f":"'Saisie des données'!B88","v":0},{"$f":"'Saisie des données'!C88","v":0},{"$f":"'Saisie des données'!D88","v":0},{"$f":"'Saisie des données'!E88","v":0},{"$f":"'Saisie des données'!D89","v":0},{"$f":"'Saisie des données'!E89","v":0}]
["=Identification!$C$10",{"$f":"'Saisie des données'!A89","v":81},{"$f":"'Saisie des données'!B89","v":0},{"$f":"'Saisie des données'!C89","v":0},{"$f":"'Saisie des données'!D89","v":0},{"$f":"'Saisie des données'!E89","v":0},{"$f":"'Saisie des données'!D90","v":0},{"$f":"'Saisie des données'!E90","v":0}]
["=Identification!$C$10",{"$f":"'Saisie des données'!A90","v":82},{"$f":"'Saisie des données'!B90","v":0},{"$f":"'Saisie des données'!C90","v":0},{"$f":"'Saisie des données'!D90","v":0},{"$f":"'Saisie des données'!E90","v":0},{"$f":"'Saisie des données'!D91","v":0},{"$f":"'Saisie des données'!E91","v":0}]
["=Identification!$C$10",{"$f":"'Saisie des données'!A91","v":83},{"$f":"'Saisie des données'!B91","v":0},{"$f":"'Saisie des données'!C91","v":0},{"$f":"'Saisie des données'!D91","v":0},{"$f":"'Saisie des données'!E91","v":0},{"$f":"'Saisie des données'!D92","v":0},{"$f":"'Saisie des données'!E92","v":0}]
["=Identification!$C$10",{"$f":"'Saisie des données'!A92","v":84},{"$f":"'Saisie des données'!B92","v":0},{"$f":"'Saisie des données'!C92","v":0},{"$f":"'Saisie des données'!D92","v":0},{"$f":"'Saisie des données'!E92","v":0},{"$f":"'Saisie des données'!D93","v":0},{"$f":"'Saisie des données'!E93","v":0}]
["=Identification!$C$10",{"$f":"'Saisie des données'!A93","v":85},{"$f":"'Saisie des données'!B93","v":0},{"$f":"'Saisie des données'!C93","v":0},{"$f":"'Saisie des données'!D93","v":0},{"$f":"'Saisie des données'!E93","v":0},{"$f":"'Saisie des données'!D94","v":0},{"$f":"'Saisie des données'!E94","v":0}]
["=Identification!$C$10",{"$f":"'Saisie des données'!A94","v":86},{"$f":"'Saisie des données'!B94","v":0},{"$f":"'Saisie des données'!C94","v":0},{"$f":"'Saisie des données'!D94","v":0},{"$f":"'Saisie des données'!E94","v":0},{"$f":"'Saisie des données'!D95","v":0},{"$f":"'Saisie des données'!E95","v":0}]
["=Identification!$C$10",{"$f":"'Saisie des données'!A95","v":87},{"$f":"'Saisie des données'!B95","v":0},{"$f":"'Saisie des données'!C95","v":0},{"$f":"'Saisie des données'!D95","v":0},{"$f":"'Saisie des données'!E95","v":0},{"$f":"'Saisie des données'!D96","v":0},{"$f":"'Saisie des données'!E96","v":0}]
["=Identification!$C$10",{"$f":"'Saisie des données'!A96","v":88},{"$f":"'Saisie des données'!B96","v":0},{"$f":"'Saisie des données'!C96","v":0},{"$f":"'Saisie des données'!D96","v":0},{"$f":"'Saisie des données'!E96","v":0},{"$f":"'Saisie des données'!D97","v":0},{"$f":"'Saisie des données'!E97","v":0}]
["=Identification!$C$10",{"$f":"'Saisie des données'!A97","v":89},{"$f":"'Saisie des données'!B97","v":0},{"$f":"'Saisie des données'!C97","v":0},{"$f":"'Saisie des données'!D97","v":0},{"$f":"'Saisie des données'!E97","v":0},{"$f":"'Saisie des données'!D98","v":0},{"$f":"'Saisie des données'!E98","v":0}]
["=Identification!$C$10",{"$f":"'Saisie des données'!A98","v":90},{"$f":"'Saisie des données'!B98","v":0},{"$f":"'Saisie des données'!C98","v":0},{"$f":"'Saisie des données'!D98","v":0},{"$f":"'Saisie des données'!E98","v":0},{"$f":"'Saisie des données'!D99","v":0},{"$f":"'Saisie des données'!E99","v":0}]
["=Identification!$C$10",{"$f":"'Saisie des données'!A99","v":91},{"$f":"'Saisie des données'!B99","v":0},{"$f":"'Saisie des données'!C99","v":0},{"$f":"'Saisie des données'!D99","v":0},{"$f":"'Saisie des données'!E99","v":0},{"$f":"'Saisie des données'!D100","v":0},{"$f":"'Saisie des données'!E100","v":0}]
["=Identification!$C$10",{"$f":"'Saisie des données'!A100","v":92},{"$f":"'Saisie des données'!B100","v":0},{"$f":"'Saisie des données'!C100","v":0},{"$f":"'Saisie des données'!D100","v":0},{"$f":"'Saisie des données'!E100","v":0},{"$f":"'Saisie des données'!D101","v":0},{"$f":"'Saisie des données'!E101","v":0}]
["=Identification!$C$10",{"$f":"'Saisie des données'!A101","v":93},{"$f":"'Saisie des données'!B101","v":0},{"$f":"'Saisie des données'!C101","v":0},{"$f":"'Saisie des données'!D101","v":0},{"$f":"'Saisie des données'!E101","v":0},{"$f":"'Saisie des données'!D102","v":0},{"$f":"'Saisie des données'!E102","v":0}]
["=Identification!$C$10",{"$f":"'Saisie des données'!A102","v":94},{"$f":"'Saisie des données'!B102","v":0},{"$f":"'Saisie des données'!C102","v":0},{"$f":"'Saisie des données'!D102","v":0},{"$f":"'Saisie des données'!E102","v":0},{"$f":"'Saisie des données'!D103","v":0},{"$f":"'Saisie des données'!E103","v":0}]
["=Identification!$C$10",{"$f":"'Saisie des données'!A103","v":95},{"$f":"'Saisie des données'!B103","v":0},{"$f":"'Saisie des données'!C103","v":0},{"$f":"'Saisie des données'!D103","v":0},{"$f":"'Saisie des données'!E103","v":0},{"$f":"'Saisie des données'!D104","v":0},{"$f":"'Saisie des données'!E104","v":0}]
["=Identification!$C$10",{"$f":"'Saisie des données'!A104","v":96},{"$f":"'Saisie des données'!B104","v":0},{"$f":"'Saisie des données'!C104","v":0},{"$f":"'Saisie des données'!D104","v":0},{"$f":"'Saisie des données'!E104","v":0},{"$f":"'Saisie des données'!D105","v":0},{"$f":"'Saisie des données'!E105","v":0}]
["=Identification!$C$10",{"$f":"'Saisie des données'!A105","v":97},{"$f":"'Saisie des données'!B105","v":0},{"$f":"'Saisie des données'!C105","v":0},{"$f":"'Saisie des données'!D105","v":0},{"$f":"'Saisie des données'!E105","v":0},{"$f":"'Saisie des données'!D106","v":0},{"$f":"'Saisie des données'!E106","v":0}]
["=Identification!$C$10",{"$f":"'Saisie des données'!A106","v":98},{"$f":"'Saisie des données'!B106","v":0},{"$f":"'Saisie des données'!C106","v":0},{"$f":"'Saisie des données'!D106","v":0},{"$f":"'Saisie des données'!E106","v":0},{"$f":"'Saisie des données'!D107","v":0},{"$f":"'Saisie des données'!E107","v":0}]
["=Identification!$C$10",{"$f":"'Saisie des données'!A107","v":99},{"$f":"'Saisie des données'!B107","v":0},{"$f":"'Saisie des données'!C107","v":0},{"$f":"'Saisie des données'!D107","v":0},{"$f":"'Saisie des données'!E107","v":0},{"$f":"'Saisie des données'!D108","v":0},{"$f":"'Saisie des données'!E108","v":0}]
["=Identification!$C$10",{"$f":"'Saisie des données'!A108","v":100},{"$f":"'Saisie des données'!B108","v":0},{"$f":"'Saisie des données'!C108","v":0},{"$f":"'Saisie des données'!D108","v":0},{"$f":"'Saisie des données'!E108","v":0},{"$f":"'Saisie des données'!D109","v":0},{"$f":"'Saisie des données'!E109","v":0}]
["=Identification!$C$10",{"$f":"'Saisie des données'!A109","v":101},{"$f":"'Saisie des données'!B109","v":0},{"$f":"'Saisie des données'!C109","v":0},{"$f":"'Saisie des données'!D109","v":0},{"$f":"'Saisie des données'!E109","v":0},{"$f":"'Saisie des données'!D110","v":0},{"$f":"'Saisie des données'!E110","v":0}]
["=Identification!$C$10",{"$f":"'Saisie des données'!A110","v":102},{"$f":"'Saisie des données'!B110","v":0},{"$f":"'Saisie des données'!C110","v":0},{"$f":"'Saisie des données'!D110","v":0},{"$f":"'Saisie des données'!E110","v":0},{"$f":"'Saisie des données'!D111","v":0},{"$f":"'Saisie des données'!E111","v":0}]
["=Identification!$C$10",{"$f":"'Saisie des données'!A111","v":103},{"$f":"'Saisie des données'!B111","v":0},{"$f":"'Saisie des données'!C111","v":0},{"$f":"'Saisie des données'!D111","v":0},{"$f":"'Saisie des données'!E111","v":0},{"$f":"'Saisie des données'!D112","v":0},{"$f":"'Saisie des données'!E112","v":0}]
["=Identification!$C$10",{"$f":"'Saisie des données'!A112","v":104},{"$f":"'Saisie des données'!B112","v":0},{"$f":"'Saisie des données'!C112","v":0},{"$f":"'Saisie des données'!D112","v":0},{"$f":"'Saisie des données'!E112","v":0},{"$f":"'Saisie des données'!D113","v":0},{"$f":"'Saisie des données'!E113","v":0}]
["=Identification!$C$10",{"$f":"'Saisie des données'!A113","v":105},{"$f":"'Saisie des données'!B113","v":0},{"$f":"'Saisie des données'!C113","v":0},{"$f":"'Saisie des données'!D113","v":0},{"$f":"'Saisie des données'!E113","v":0},{"$f":"'Saisie des données'!D114","v":0},{"$f":"'Saisie des données'!E114","v":0}]
["=Identification!$C$10",{"$f":"'Saisie des données'!A114","v":106},{"$f":"'Saisie des données'!B114","v":0},{"$f":"'Saisie des données'!C114","v":0},{"$f":"'Saisie des données'!D114","v":0},{"$f":"'Saisie des données'!E114","v":0},{"$f":"'Saisie des données'!D115","v":0},{"$f":"'Saisie des données'!E115","v":0}]
["=Identification!$C$10",{"$f":"'Saisie des données'!A115","v":107},{"$f":"'Saisie des données'!B115","v":0},{"$f":"'Saisie des données'!C115","v":0},{"$f":"'Saisie des données'!D115","v":0},{"$f":"'Saisie des données'!E115","v":0},{"$f":"'Saisie des données'!D116","v":0},{"$f":"'Saisie des données'!E116","v":0}]
["=Identification!$C$10",{"$f":"'Saisie des données'!A116","v":108},{"$f":"'Saisie des données'!B116","v":0},{"$f":"'Saisie des données'!C116","v":0},{"$f":"'Saisie des données'!D116","v":0},{"$f":"'Saisie des données'!E116","v":0},{"$f":"'Saisie des données'!D117","v":0},{"$f":"'Saisie des données'!E117","v":0}]
["=Identification!$C$10",{"$f":"'Saisie des données'!A117","v":109},{"$f":"'Saisie des données'!B117","v":0},{"$f":"'Saisie des données'!C117","v":0},{"$f":"'Saisie des données'!D117","v":0},{"$f":"'Saisie des données'!E117","v":0},{"$f":"'Saisie des données'!D118","v":0},{"$f":"'Saisie des données'!E118","v":0}]
["=Identification!$C$10",{"$f":"'Saisie des données'!A118","v":110},{"$f":"'Saisie des données'!B118","v":0},{"$f":"'Saisie des données'!C118","v":0},{"$f":"'Saisie des données'!D118","v":0},{"$f":"'Saisie des données'!E118","v":0},{"$f":"'Saisie des données'!D119","v":0},{"$f":"'Saisie des données'!E119","v":0}]
["=Identification!$C$10",{"$f":"'Saisie des données'!A119","v":111},{"$f":"'Saisie des données'!B119","v":0},{"$f":"'Saisie des données'!C119","v":0},{"$f":"'Saisie des données'!D119","v":0},{"$f":"'Saisie des données'!E119","v":0},{"$f":"'Saisie des données'!D120","v":0},{"$f":"'Saisie des données'!E120","v":0}]
["=Identification!$C$10",{"$f":"'Saisie des données'!A120","v":112},{"$f":"'Saisie des données'!B120","v":0},{"$f":"'Saisie des données'!C120","v":0},{"$f":"'Saisie des données'!D120","v":0},{"$f":"'Saisie des données'!E120","v":0},{"$f":"'Saisie des données'!D121","v":0},{"$f":"'Saisie des données'!E121","v":0}]
["=Identification!$C$10",{"$f":"'Saisie des données'!A121","v":113},{"$f":"'Saisie des données'!B121","v":0},{"$f":"'Saisie des données'!C121","v":0},{"$f":"'Saisie des données'!D121","v":0},{"$f":"'Saisie des données'!E121","v":0},{"$f":"'Saisie des données'!D122","v":0},{"$f":"'Saisie des données'!E122","v":0}]
["=Identification!$C$10",{"$f":"'Saisie des données'!A122","v":114},{"$f":"'Saisie des données'!B122","v":0},{"$f":"'Saisie des données'!C122","v":0},{"$f":"'Saisie des données'!D122","v":0},{"$f":"'Saisie des données'!E122","v":0},{"$f":"'Saisie des données'!D123","v":0},{"$f":"'Saisie des données'!E123","v":0}]
["=Identification!$C$10",{"$f":"'Saisie des données'!A123","v":115},{"$f":"'Saisie des données'!B123","v":0},{"$f":"'Saisie des données'!C123","v":0},{"$f":"'Saisie des données'!D123","v":0},{"$f":"'Saisie des données'!E123","v":0},{"$f":"'Saisie des données'!D124","v":0},{"$f":"'Saisie des données'!E124","v":0}]
["=Identification!$C$10",{"$f":"'Saisie des données'!A124","v":116},{"$f":"'Saisie des données'!B124","v":0},{"$f":"'Saisie des données'!C124","v":0},{"$f":"'Saisie des données'!D124","v":0},{"$f":"'Saisie des données'!E124","v":0},{"$f":"'Saisie des données'!D125","v":0},{"$f":"'Saisie des données'!E125","v":0}]
["=Identification!$C$10",{"$f":"'Saisie des données'!A125","v":117},{"$f":"'Saisie des données'!B125","v":0},{"$f":"'Saisie des données'!C125","v":0},{"$f":"'Saisie des données'!D125","v":0},{"$f":"'Saisie des données'!E125","v":0},{"$f":"'Saisie des données'!D126","v":0},{"$f":"'Saisie des données'!E126","v":0}]
["=Identification!$C$10",{"$f":"'Saisie des données'!A126","v":118},{"$f":"'Saisie des données'!B126","v":0},{"$f":"'Saisie des données'!C126","v":0},{"$f":"'Saisie des données'!D126","v":0},{"$f":"'Saisie des données'!E126","v":0},{"$f":"'Saisie des données'!D127","v":0},{"$f":"'Saisie des données'!E127","v":0}]
["=Identification!$C$10",{"$f":"'Saisie des données'!A127","v":119},{"$f":"'Saisie des données'!B127","v":0},{"$f":"'Saisie des données'!C127","v":0},{"$f":"'Saisie des données'!D127","v":0},{"$f":"'Saisie des données'!E127","v":0},{"$f":"'Saisie des données'!D128","v":0},{"$f":"'Saisie des données'!E128","v":0}]
["=Identification!$C$10",{"$f":"'Saisie des données'!A128","v":120},{"$f":"'Saisie des données'!B128","v":0},{"$f":"'Saisie des données'!C128","v":0},{"$f":"'Saisie des données'!D128","v":0},{"$f":"'Saisie des données'!E128","v":0},{"$f":"'Saisie des données'!D129","v":0},{"$f":"'Saisie des données'!E129","v":0}]
["=Identification!$C$10",{"$f":"'Saisie des données'!A129","v":121},{"$f":"'Saisie des données'!B129","v":0},{"$f":"'Saisie des données'!C129","v":0},{"$f":"'Saisie des données'!D129","v":0},{"$f":"'Saisie des données'!E129","v":0},{"$f":"'Saisie des données'!D130","v":0},{"$f":"'Saisie des données'!E130","v":0}]
["=Identification!$C$10",{"$f":"'Saisie des données'!A130","v":122},{"$f":"'Saisie des données'!B130","v":0},{"$f":"'Saisie des données'!C130","v":0},{"$f":"'Saisie des données'!D130","v":0},{"$f":"'Saisie des données'!E130","v":0},{"$f":"'Saisie des données'!D131","v":0},{"$f":"'Saisie des données'!E131","v":0}]
["=Identification!$C$10",{"$f":"'Saisie des données'!A131","v":123},{"$f":"'Saisie des données'!B131","v":0},{"$f":"'Saisie des données'!C131","v":0},{"$f":"'Saisie des données'!D131","v":0},{"$f":"'Saisie des données'!E131","v":0},{"$f":"'Saisie des données'!D132","v":0},{"$f":"'Saisie des données'!E132","v":0}]
["=Identification!$C$10",{"$f":"'Saisie des données'!A132","v":124},{"$f":"'Saisie des données'!B132","v":0},{"$f":"'Saisie des données'!C132","v":0},{"$f":"'Saisie des données'!D132","v":0},{"$f":"'Saisie des données'!E132","v":0},{"$f":"'Saisie des données'!D133","v":0},{"$f":"'Saisie des données'!E133","v":0}]
["=Identification!$C$10",{"$f":"'Saisie des données'!A133","v":125},{"$f":"'Saisie des données'!B133","v":0},{"$f":"'Saisie des données'!C133","v":0},{"$f":"'Saisie des données'!D133","v":0},{"$f":"'Saisie des données'!E133","v":0},{"$f":"'Saisie des données'!D134","v":0},{"$f":"'Saisie des données'!E134","v":0}]
["=Identification!$C$10",{"$f":"'Saisie des données'!A134","v":126},{"$f":"'Saisie des données'!B134","v":0},{"$f":"'Saisie des données'!C134","v":0},{"$f":"'Saisie des données'!D134","v":0},{"$f":"'Saisie des données'!E134","v":0},{"$f":"'Saisie des données'!D135","v":0},{"$f":"'Saisie des données'!E135","v":0}]
["=Identification!$C$10",{"$f":"'Saisie des données'!A135","v":127},{"$f":"'Saisie des données'!B135","v":0},{"$f":"'Saisie des données'!C135","v":0},{"$f":"'Saisie des données'!D135","v":0},{"$f":"'Saisie des données'!E135","v":0},{"$f":"'Saisie des données'!D136","v":0},{"$f":"'Saisie des données'!E136","v":0}]
["=Identification!$C$10",{"$f":"'Saisie des données'!A136","v":128},{"$f":"'Saisie des données'!B136","v":0},{"$f":"'Saisie des données'!C136","v":0},{"$f":"'Saisie des données'!D136","v":0},{"$f":"'Saisie des données'!E136","v":0},{"$f":"'Saisie des données'!D137","v":0},{"$f":"'Saisie des données'!E137","v":0}]
["=Identification!$C$10",{"$f":"'Saisie des données'!A137","v":129},{"$f":"'Saisie des données'!B137","v":0},{"$f":"'Saisie des données'!C137","v":0},{"$f":"'Saisie des données'!D137","v":0},{"$f":"'Saisie des données'!E137","v":0},{"$f":"'Saisie des données'!D138","v":0},{"$f":"'Saisie des données'!E138","v":0}]
["=Identification!$C$10",{"$f":"'Saisie des données'!A138","v":130},{"$f":"'Saisie des données'!B138","v":0},{"$f":"'Saisie des données'!C138","v":0},{"$f":"'Saisie des données'!D138","v":0},{"$f":"'Saisie des données'!E138","v":0},{"$f":"'Saisie des données'!D139","v":0},{"$f":"'Saisie des données'!E139","v":0}]
["=Identification!$C$10",{"$f":"'Saisie des données'!A139","v":131},{"$f":"'Saisie des données'!B139","v":0},{"$f":"'Saisie des données'!C139","v":0},{"$f":"'Saisie des données'!D139","v":0},{"$f":"'Saisie des données'!E139","v":0},{"$f":"'Saisie des données'!D140","v":0},{"$f":"'Saisie des données'!E140","v":0}]
["=Identification!$C$10",{"$f":"'Saisie des données'!A140","v":132},{"$f":"'Saisie des données'!B140","v":0},{"$f":"'Saisie des données'!C140","v":0},{"$f":"'Saisie des données'!D140","v":0},{"$f":"'Saisie des données'!E140","v":0},{"$f":"'Saisie des données'!D141","v":0},{"$f":"'Saisie des données'!E141","v":0}]
["=Identification!$C$10",{"$f":"'Saisie des données'!A141","v":133},{"$f":"'Saisie des données'!B141","v":0},{"$f":"'Saisie des données'!C141","v":0},{"$f":"'Saisie des données'!D141","v":0},{"$f":"'Saisie des données'!E141","v":0},{"$f":"'Saisie des données'!D142","v":0},{"$f":"'Saisie des données'!E142","v":0}]
["=Identification!$C$10",{"$f":"'Saisie des données'!A142","v":134},{"$f":"'Saisie des données'!B142","v":0},{"$f":"'Saisie des données'!C142","v":0},{"$f":"'Saisie des données'!D142","v":0},{"$f":"'Saisie des données'!E142","v":0},{"$f":"'Saisie des données'!D143","v":0},{"$f":"'Saisie des données'!E143","v":0}]
["=Identification!$C$10",{"$f":"'Saisie des données'!A143","v":135},{"$f":"'Saisie des données'!B143","v":0},{"$f":"'Saisie des données'!C143","v":0},{"$f":"'Saisie des données'!D143","v":0},{"$f":"'Saisie des données'!E143","v":0},{"$f":"'Saisie des données'!D144","v":0},{"$f":"'Saisie des données'!E144","v":0}]
["=Identification!$C$10",{"$f":"'Saisie des données'!A144","v":136},{"$f":"'Saisie des données'!B144","v":0},{"$f":"'Saisie des données'!C144","v":0},{"$f":"'Saisie des données'!D144","v":0},{"$f":"'Saisie des données'!E144","v":0},{"$f":"'Saisie des données'!D145","v":0},{"$f":"'Saisie des données'!E145","v":0}]
["=Identification!$C$10",{"$f":"'Saisie des données'!A145","v":137},{"$f":"'Saisie des données'!B145","v":0},{"$f":"'Saisie des données'!C145","v":0},{"$f":"'Saisie des données'!D145","v":0},{"$f":"'Saisie des données'!E145","v":0},{"$f":"'Saisie des données'!D146","v":0},{"$f":"'Saisie des données'!E146","v":0}]
["=Identification!$C$10",{"$f":"'Saisie des données'!A146","v":138},{"$f":"'Saisie des données'!B146","v":0},{"$f":"'Saisie des données'!C146","v":0},{"$f":"'Saisie des données'!D146","v":0},{"$f":"'Saisie des données'!E146","v":0},{"$f":"'Saisie des données'!D147","v":0},{"$f":"'Saisie des données'!E147","v":0}]
["=Identification!$C$10",{"$f":"'Saisie des données'!A147","v":139},{"$f":"'Saisie des données'!B147","v":0},{"$f":"'Saisie des données'!C147","v":0},{"$f":"'Saisie des données'!D147","v":0},{"$f":"'Saisie des données'!E147","v":0},{"$f":"'Saisie des données'!D148","v":0},{"$f":"'Saisie des données'!E148","v":0}]
["=Identification!$C$10",{"$f":"'Saisie des données'!A148","v":140},{"$f":"'Saisie des données'!B148","v":0},{"$f":"'Saisie des données'!C148","v":0},{"$f":"'Saisie des données'!D148","v":0},{"$f":"'Saisie des données'!E148","v":0},{"$f":"'Saisie des données'!D149","v":0},{"$f":"'Saisie des données'!E149","v":0}]
["=Identification!$C$10",{"$f":"'Saisie des données'!A149","v":141},{"$f":"'Saisie des données'!B149","v":0},{"$f":"'Saisie des données'!C149","v":0},{"$f":"'Saisie des données'!D149","v":0},{"$f":"'Saisie des données'!E149","v":0},{"$f":"'Saisie des données'!D150","v":0},{"$f":"'Saisie des données'!E150","v":0}]
["=Identification!$C$10",{"$f":"'Saisie des données'!A150","v":142},{"$f":"'Saisie des données'!B150","v":0},{"$f":"'Saisie des données'!C150","v":0},{"$f":"'Saisie des données'!D150","v":0},{"$f":"'Saisie des données'!E150","v":0},{"$f":"'Saisie des données'!D151","v":0},{"$f":"'Saisie des données'!E151","v":0}]
["=Identification!$C$10",{"$f":"'Saisie des données'!A151","v":143},{"$f":"'Saisie des données'!B151","v":0},{"$f":"'Saisie des données'!C151","v":0},{"$f":"'Saisie des données'!D151","v":0},{"$f":"'Saisie des données'!E151","v":0},{"$f":"'Saisie des données'!D152","v":0},{"$f":"'Saisie des données'!E152","v":0}]
["=Identification!$C$10",{"$f":"'Saisie des données'!A152","v":144},{"$f":"'Saisie des données'!B152","v":0},{"$f":"'Saisie des données'!C152","v":0},{"$f":"'Saisie des données'!D152","v":0},{"$f":"'Saisie des données'!E152","v":0},{"$f":"'Saisie des données'!D153","v":0},{"$f":"'Saisie des données'!E153","v":0}]
["=Identification!$C$10",{"$f":"'Saisie des données'!A153","v":145},{"$f":"'Saisie des données'!B153","v":0},{"$f":"'Saisie des données'!C153","v":0},{"$f":"'Saisie des données'!D153","v":0},{"$f":"'Saisie des données'!E153","v":0},{"$f":"'Saisie des données'!D154","v":0},{"$f":"'Saisie des données'!E154","v":0}]
["=Identification!$C$10",{"$f":"'Saisie des données'!A154","v":146},{"$f":"'Saisie des données'!B154","v":0},{"$f":"'Saisie des données'!C154","v":0},{"$f":"'Saisie des données'!D154","v":0},{"$f":"'Saisie des données'!E154","v":0},{"$f":"'Saisie des données'!D155","v":0},{"$f":"'Saisie des données'!E155","v":0}]
["=Identification!$C$10",{"$f":"'Saisie des données'!A155","v":147},{"$f":"'Saisie des données'!B155","v":0},{"$f":"'Saisie des données'!C155","v":0},{"$f":"'Saisie des données'!D155","v":0},{"$f":"'Saisie des données'!E155","v":0},{"$f":"'Saisie des données'!D156","v":0},{"$f":"'Saisie des données'!E156","v":0}]
["=Identification!$C$10",{"$f":"'Saisie des données'!A156","v":148},{"$f":"'Saisie des données'!B156","v":0},{"$f":"'Saisie des données'!C156","v":0},{"$f":"'Saisie des données'!D156","v":0},{"$f":"'Saisie des données'!E156","v":0},{"$f":"'Saisie des données'!D157","v":0},{"$f":"'Saisie des données'!E157","v":0}]
["=Identification!$C$10",{"$f":"'Saisie des données'!A157","v":149},{"$f":"'Saisie des données'!B157","v":0},{"$f":"'Saisie des données'!C157","v":0},{"$f":"'Saisie des données'!D157","v":0},{"$f":"'Saisie des données'!E157","v":0},{"$f":"'Saisie des données'!D158","v":0},{"$f":"'Saisie des données'!E158","v":0}]
["=Identification!$C$10",{"$f":"'Saisie des données'!A158","v":150},{"$f":"'Saisie des données'!B158","v":0},{"$f":"'Saisie des données'!C158","v":0},{"$f":"'Saisie des données'!D158","v":0},{"$f":"'Saisie des données'!E158","v":0},{"$f":"'Saisie des données'!D159","v":0},{"$f":"'Saisie des données'!E159","v":0}]
["=Identification!$C$10",{"$f":"'Saisie des données'!A159","v":151},{"$f":"'Saisie des données'!B159","v":0},{"$f":"'Saisie des données'!C159","v":0},{"$f":"'Saisie des données'!D159","v":0},{"$f":"'Saisie des données'!E159","v":0},{"$f":"'Saisie des données'!D160","v":0},{"$f":"'Saisie des données'!E160","v":0}]
["=Identification!$C$10",{"$f":"'Saisie des données'!A160","v":152},{"$f":"'Saisie des données'!B160","v":0},{"$f":"'Saisie des données'!C160","v":0},{"$f":"'Saisie des données'!D160","v":0},{"$f":"'Saisie des données'!E160","v":0},{"$f":"'Saisie des données'!D161","v":0},{"$f":"'Saisie des données'!E161","v":0}]
["=Identification!$C$10",{"$f":"'Saisie des données'!A161","v":153},{"$f":"'Saisie des données'!B161","v":0},{"$f":"'Saisie des données'!C161","v":0},{"$f":"'Saisie des données'!D161","v":0},{"$f":"'Saisie des données'!E161","v":0},{"$f":"'Saisie des données'!D162","v":0},{"$f":"'Saisie des données'!E162","v":0}]
["=Identification!$C$10",{"$f":"'Saisie des données'!A162","v":154},{"$f":"'Saisie des données'!B162","v":0},{"$f":"'Saisie des données'!C162","v":0},{"$f":"'Saisie des données'!D162","v":0},{"$f":"'Saisie des données'!E162","v":0},{"$f":"'Saisie des données'!D163","v":0},{"$f":"'Saisie des données'!E163","v":0}]
["=Identification!$C$10",{"$f":"'Saisie des données'!A163","v":155},{"$f":"'Saisie des données'!B163","v":0},{"$f":"'Saisie des données'!C163","v":0},{"$f":"'Saisie des données'!D163","v":0},{"$f":"'Saisie des données'!E163","v":0},{"$f":"'Saisie des données'!D164","v":0},{"$f":"'Saisie des données'!E164","v":0}]
["=Identification!$C$10",{"$f":"'Saisie des données'!A164","v":156},{"$f":"'Saisie des données'!B164","v":0},{"$f":"'Saisie des données'!C164","v":0},{"$f":"'Saisie des données'!D164","v":0},{"$f":"'Saisie des données'!E164","v":0},{"$f":"'Saisie des données'!D165","v":0},{"$f":"'Saisie des données'!E165","v":0}]
["=Identification!$C$10",{"$f":"'Saisie des données'!A165","v":157},{"$f":"'Saisie des données'!B165","v":0},{"$f":"'Saisie des données'!C165","v":0},{"$f":"'Saisie des données'!D165","v":0},{"$f":"'Saisie des données'!E165","v":0},{"$f":"'Saisie des données'!D166","v":0},{"$f":"'Saisie des données'!E166","v":0}]
["=Identification!$C$10",{"$f":"'Saisie des données'!A166","v":158},{"$f":"'Saisie des données'!B166","v":0},{"$f":"'Saisie des données'!C166","v":0},{"$f":"'Saisie des données'!D166","v":0},{"$f":"'Saisie des données'!E166","v":0},{"$f":"'Saisie des données'!D167","v":0},{"$f":"'Saisie des données'!E167","v":0}]
["=Identification!$C$10",{"$f":"'Saisie des données'!A167","v":159},{"$f":"'Saisie des données'!B167","v":0},{"$f":"'Saisie des données'!C167","v":0},{"$f":"'Saisie des données'!D167","v":0},{"$f":"'Saisie des données'!E167","v":0},{"$f":"'Saisie des données'!D168","v":0},{"$f":"'Saisie des données'!E168","v":0}]
["=Identification!$C$10",{"$f":"'Saisie des données'!A168","v":160},{"$f":"'Saisie des données'!B168","v":0},{"$f":"'Saisie des données'!C168","v":0},{"$f":"'Saisie des données'!D168","v":0},{"$f":"'Saisie des données'!E168","v":0},{"$f":"'Saisie des données'!D169","v":0},{"$f":"'Saisie des données'!E169","v":0}]
["=Identification!$C$10",{"$f":"'Saisie des données'!A169","v":161},{"$f":"'Saisie des données'!B169","v":0},{"$f":"'Saisie des données'!C169","v":0},{"$f":"'Saisie des données'!D169","v":0},{"$f":"'Saisie des données'!E169","v":0},{"$f":"'Saisie des données'!D170","v":0},{"$f":"'Saisie des données'!E170","v":0}]
["=Identification!$C$10",{"$f":"'Saisie des données'!A170","v":162},{"$f":"'Saisie des données'!B170","v":0},{"$f":"'Saisie des données'!C170","v":0},{"$f":"'Saisie des données'!D170","v":0},{"$f":"'Saisie des données'!E170","v":0},{"$f":"'Saisie des données'!D171","v":0},{"$f":"'Saisie des données'!E171","v":0}]
["=Identification!$C$10",{"$f":"'Saisie des données'!A171","v":163},{"$f":"'Saisie des données'!B171","v":0},{"$f":"'Saisie des données'!C171","v":0},{"$f":"'Saisie des données'!D171","v":0},{"$f":"'Saisie des données'!E171","v":0},{"$f":"'Saisie des données'!D172","v":0},{"$f":"'Saisie des données'!E172","v":0}]
["=Identification!$C$10",{"$f":"'Saisie des données'!A172","v":164},{"$f":"'Saisie des données'!B172","v":0},{"$f":"'Saisie des données'!C172","v":0},{"$f":"'Saisie des données'!D172","v":0},{"$f":"'Saisie des données'!E172","v":0},{"$f":"'Saisie des données'!D173","v":0},{"$f":"'Saisie des données'!E173","v":0}]
["=Identification!$C$10",{"$f":"'Saisie des données'!A173","v":165},{"$f":"'Saisie des données'!B173","v":0},{"$f":"'Saisie des données'!C173","v":0},{"$f":"'Saisie des données'!D173","v":0},{"$f":"'Saisie des données'!E173","v":0},{"$f":"'Saisie des données'!D174","v":0},{"$f":"'Saisie des données'!E174","v":0}]
["=Identification!$C$10",{"$f":"'Saisie des données'!A174","v":166},{"$f":"'Saisie des données'!B174","v":0},{"$f":"'Saisie des données'!C174","v":0},{"$f":"'Saisie des données'!D174","v":0},{"$f":"'Saisie des données'!E174","v":0},{"$f":"'Saisie des données'!D175","v":0},{"$f":"'Saisie des données'!E175","v":0}]
["=Identification!$C$10",{"$f":"'Saisie des données'!A175","v":167},{"$f":"'Saisie des données'!B175","v":0},{"$f":"'Saisie des données'!C175","v":0},{"$f":"'Saisie des données'!D175","v":0},{"$f":"'Saisie des données'!E175","v":0},{"$f":"'Saisie des données'!D176","v":0},{"$f":"'Saisie des données'!E176","v":0}]
["=Identification!$C$10",{"$f":"'Saisie des données'!A176","v":168},{"$f":"'Saisie des données'!B176","v":0},{"$f":"'Saisie des données'!C176","v":0},{"$f":"'Saisie des données'!D176","v":0},{"$f":"'Saisie des données'!E176","v":0},{"$f":"'Saisie des données'!D177","v":0},{"$f":"'Saisie des données'!E177","v":0}]
["=Identification!$C$10",{"$f":"'Saisie des données'!A177","v":169},{"$f":"'Saisie des données'!B177","v":0},{"$f":"'Saisie des données'!C177","v":0},{"$f":"'Saisie des données'!D177","v":0},{"$f":"'Saisie des données'!E177","v":0},{"$f":"'Saisie des données'!D178","v":0},{"$f":"'Saisie des données'!E178","v":0}]
["=Identification!$C$10",{"$f":"'Saisie des données'!A178","v":170},{"$f":"'Saisie des données'!B178","v":0},{"$f":"'Saisie des données'!C178","v":0},{"$f":"'Saisie des données'!D178","v":0},{"$f":"'Saisie des données'!E178","v":0},{"$f":"'Saisie des données'!D179","v":0},{"$f":"'Saisie des données'!E179","v":0}]
["=Identification!$C$10",{"$f":"'Saisie des données'!A179","v":171},{"$f":"'Saisie des données'!B179","v":0},{"$f":"'Saisie des données'!C179","v":0},{"$f":"'Saisie des données'!D179","v":0},{"$f":"'Saisie des données'!E179","v":0},{"$f":"'Saisie des données'!D180","v":0},{"$f":"'Saisie des données'!E180","v":0}]
["=Identification!$C$10",{"$f":"'Saisie des données'!A180","v":172},{"$f":"'Saisie des données'!B180","v":0},{"$f":"'Saisie des données'!C180","v":0},{"$f":"'Saisie des données'!D180","v":0},{"$f":"'Saisie des données'!E180","v":0},{"$f":"'Saisie des données'!D181","v":0},{"$f":"'Saisie des données'!E181","v":0}]
["=Identification!$C$10",{"$f":"'Saisie des données'!A181","v":173},{"$f":"'Saisie des données'!B181","v":0},{"$f":"'Saisie des données'!C181","v":0},{"$f":"'Saisie des données'!D181","v":0},{"$f":"'Saisie des données'!E181","v":0},{"$f":"'Saisie des données'!D182","v":0},{"$f":"'Saisie des données'!E182","v":0}]
["=Identification!$C$10",{"$f":"'Saisie des données'!A182","v":174},{"$f":"'Saisie des données'!B182","v":0},{"$f":"'Saisie des données'!C182","v":0},{"$f":"'Saisie des données'!D182","v":0},{"$f":"'Saisie des données'!E182","v":0},{"$f":"'Saisie des données'!D183","v":0},{"$f":"'Saisie des données'!E183","v":0}]
["=Identification!$C$10",{"$f":"'Saisie des données'!A183","v":175},{"$f":"'Saisie des données'!B183","v":0},{"$f":"'Saisie des données'!C183","v":0},{"$f":"'Saisie des données'!D183","v":0},{"$f":"'Saisie des données'!E183","v":0},{"$f":"'Saisie des données'!D184","v":0},{"$f":"'Saisie des données'!E184","v":0}]
["=Identification!$C$10",{"$f":"'Saisie des données'!A184","v":176},{"$f":"'Saisie des données'!B184","v":0},{"$f":"'Saisie des données'!C184","v":0},{"$f":"'Saisie des données'!D184","v":0},{"$f":"'Saisie des données'!E184","v":0},{"$f":"'Saisie des données'!D185","v":0},{"$f":"'Saisie des données'!E185","v":0}]
["=Identification!$C$10",{"$f":"'Saisie des données'!A185","v":177},{"$f":"'Saisie des données'!B185","v":0},{"$f":"'Saisie des données'!C185","v":0},{"$f":"'Saisie des données'!D185","v":0},{"$f":"'Saisie des données'!E185","v":0},{"$f":"'Saisie des données'!D186","v":0},{"$f":"'Saisie des données'!E186","v":0}]
["=Identification!$C$10",{"$f":"'Saisie des données'!A186","v":178},{"$f":"'Saisie des données'!B186","v":0},{"$f":"'Saisie des données'!C186","v":0},{"$f":"'Saisie des données'!D186","v":0},{"$f":"'Saisie des données'!E186","v":0},{"$f":"'Saisie des données'!D187","v":0},{"$f":"'Saisie des données'!E187","v":0}]
["=Identification!$C$10",{"$f":"'Saisie des données'!A187","v":179},{"$f":"'Saisie des données'!B187","v":0},{"$f":"'Saisie des données'!C187","v":0},{"$f":"'Saisie des données'!D187","v":0},{"$f":"'Saisie des données'!E187","v":0},{"$f":"'Saisie des données'!D188","v":0},{"$f":"'Saisie des données'!E188","v":0}]
["=Identification!$C$10",{"$f":"'Saisie des données'!A188","v":180},{"$f":"'Saisie des données'!B188","v":0},{"$f":"'Saisie des données'!C188","v":0},{"$f":"'Saisie des données'!D188","v":0},{"$f":"'Saisie des données'!E188","v":0},{"$f":"'Saisie des données'!D189","v":0},{"$f":"'Saisie des données'!E189","v":0}]
["=Identification!$C$10",{"$f":"'Saisie des données'!A189","v":181},{"$f":"'Saisie des données'!B189","v":0},{"$f":"'Saisie des données'!C189","v":0},{"$f":"'Saisie des données'!D189","v":0},{"$f":"'Saisie des données'!E189","v":0},{"$f":"'Saisie des données'!D190","v":0},{"$f":"'Saisie des données'!E190","v":0}]
["=Identification!$C$10",{"$f":"'Saisie des données'!A190","v":182},{"$f":"'Saisie des données'!B190","v":0},{"$f":"'Saisie des données'!C190","v":0},{"$f":"'Saisie des données'!D190","v":0},{"$f":"'Saisie des données'!E190","v":0},{"$f":"'Saisie des données'!D191","v":0},{"$f":"'Saisie des données'!E191","v":0}]
["=Identification!$C$10",{"$f":"'Saisie des données'!A191","v":183},{"$f":"'Saisie des données'!B191","v":0},{"$f":"'Saisie des données'!C191","v":0},{"$f":"'Saisie des données'!D191","v":0},{"$f":"'Saisie des données'!E191","v":0},{"$f":"'Saisie des données'!D192","v":0},{"$f":"'Saisie des données'!E192","v":0}]
["=Identification!$C$10",{"$f":"'Saisie des données'!A192","v":184},{"$f":"'Saisie des données'!B192","v":0},{"$f":"'Saisie des données'!C192","v":0},{"$f":"'Saisie des données'!D192","v":0},{"$f":"'Saisie des données'!E192","v":0},{"$f":"'Saisie des données'!D193","v":0},{"$f":"'Saisie des données'!E193","v":0}]
["=Identification!$C$10",{"$f":"'Saisie des données'!A193","v":185},{"$f":"'Saisie des données'!B193","v":0},{"$f":"'Saisie des données'!C193","v":0},{"$f":"'Saisie des données'!D193","v":0},{"$f":"'Saisie des données'!E193","v":0},{"$f":"'Saisie des données'!D194","v":0},{"$f":"'Saisie des données'!E194","v":0}]
["=Identification!$C$10",{"$f":"'Saisie des données'!A194","v":186},{"$f":"'Saisie des données'!B194","v":0},{"$f":"'Saisie des données'!C194","v":0},{"$f":"'Saisie des données'!D194","v":0},{"$f":"'Saisie des données'!E194","v":0},{"$f":"'Saisie des données'!D195","v":0},{"$f":"'Saisie des données'!E195","v":0}]
["=Identification!$C$10",{"$f":"'Saisie des données'!A195","v":187},{"$f":"'Saisie des données'!B195","v":0},{"$f":"'Saisie des données'!C195","v":0},{"$f":"'Saisie des données'!D195","v":0},{"$f":"'Saisie des données'!E195","v":0},{"$f":"'Saisie des données'!D196","v":0},{"$f":"'Saisie des données'!E196","v":0}]
["=Identification!$C$10",{"$f":"'Saisie des données'!A196","v":188},{"$f":"'Saisie des données'!B196","v":0},{"$f":"'Saisie des données'!C196","v":0},{"$f":"'Saisie des données'!D196","v":0},{"$f":"'Saisie des données'!E196","v":0},{"$f":"'Saisie des données'!D197","v":0},{"$f":"'Saisie des données'!E197","v":0}]
["=Identification!$C$10",{"$f":"'Saisie des données'!A197","v":189},{"$f":"'Saisie des données'!B197","v":0},{"$f":"'Saisie des données'!C197","v":0},{"$f":"'Saisie des données'!D197","v":0},{"$f":"'Saisie des données'!E197","v":0},{"$f":"'Saisie des données'!D198","v":0},{"$f":"'Saisie des données'!E198","v":0}]
["=Identification!$C$10",{"$f":"'Saisie des données'!A198","v":190},{"$f":"'Saisie des données'!B198","v":0},{"$f":"'Saisie des données'!C198","v":0},{"$f":"'Saisie des données'!D198","v":0},{"$f":"'Saisie des données'!E198","v":0},{"$f":"'Saisie des données'!D199","v":0},{"$f":"'Saisie des données'!E199","v":0}]
["=Identification!$C$10",{"$f":"'Saisie des données'!A199","v":191},{"$f":"'Saisie des données'!B199","v":0},{"$f":"'Saisie des données'!C199","v":0},{"$f":"'Saisie des données'!D199","v":0},{"$f":"'Saisie des données'!E199","v":0},{"$f":"'Saisie des données'!D200","v":0},{"$f":"'Saisie des données'!E200","v":0}]
["=Identification!$C$10",{"$f":"'Saisie des données'!A200","v":192},{"$f":"'Saisie des données'!B200","v":0},{"$f":"'Saisie des données'!C200","v":0},{"$f":"'Saisie des données'!D200","v":0},{"$f":"'Saisie des données'!E200","v":0},{"$f":"'Saisie des données'!D201","v":0},{"$f":"'Saisie des données'!E201","v":0}]
["=Identification!$C$10",{"$f":"'Saisie des données'!A201","v":193},{"$f":"'Saisie des données'!B201","v":0},{"$f":"'Saisie des données'!C201","v":0},{"$f":"'Saisie des données'!D201","v":0},{"$f":"'Saisie des données'!E201","v":0},{"$f":"'Saisie des données'!D202","v":0},{"$f":"'Saisie des données'!E202","v":0}]
["=Identification!$C$10",{"$f":"'Saisie des données'!A202","v":194},{"$f":"'Saisie des données'!B202","v":0},{"$f":"'Saisie des données'!C202","v":0},{"$f":"'Saisie des données'!D202","v":0},{"$f":"'Saisie des données'!E202","v":0},{"$f":"'Saisie des données'!D203","v":0},{"$f":"'Saisie des données'!E203","v":0}]
["=Identification!$C$10",{"$f":"'Saisie des données'!A203","v":195},{"$f":"'Saisie des données'!B203","v":0},{"$f":"'Saisie des données'!C203","v":0},{"$f":"'Saisie des données'!D203","v":0},{"$f":"'Saisie des données'!E203","v":0},{"$f":"'Saisie des données'!D204","v":0},{"$f":"'Saisie des données'!E204","v":0}]
["=Identification!$C$10",{"$f":"'Saisie des données'!A204","v":196},{"$f":"'Saisie des données'!B204","v":0},{"$f":"'Saisie des données'!C204","v":0},{"$f":"'Saisie des données'!D204","v":0},{"$f":"'Saisie des données'!E204","v":0},{"$f":"'Saisie des données'!D205","v":0},{"$f":"'Saisie des données'!E205","v":0}]
["=Identification!$C$10",{"$f":"'Saisie des données'!A205","v":197},{"$f":"'Saisie des données'!B205","v":0},{"$f":"'Saisie des données'!C205","v":0},{"$f":"'Saisie des données'!D205","v":0},{"$f":"'Saisie des données'!E205","v":0},{"$f":"'Saisie des données'!D206","v":0},{"$f":"'Saisie des données'!E206","v":0}]
["=Identification!$C$10",{"$f":"'Saisie des données'!A206","v":198},{"$f":"'Saisie des données'!B206","v":0},{"$f":"'Saisie des données'!C206","v":0},{"$f":"'Saisie des données'!D206","v":0},{"$f":"'Saisie des données'!E206","v":0},{"$f":"'Saisie des données'!D207","v":0},{"$f":"'Saisie des données'!E207","v":0}]
["=Identification!$C$10",{"$f":"'Saisie des données'!A207","v":199},{"$f":"'Saisie des données'!B207","v":0},{"$f":"'Saisie des données'!C207","v":0},{"$f":"'Saisie des données'!D207","v":0},{"$f":"'Saisie des données'!E207","v":0},{"$f":"'Saisie des données'!D208","v":0},{"$f":"'Saisie des données'!E208","v":0}]
["=Identification!$C$10",{"$f":"'Saisie des données'!A208","v":200},{"$f":"'Saisie des données'!B208","v":0},{"$f":"'Saisie des données'!C208","v":0},{"$f":"'Saisie des données'!D208","v":0},{"$f":"'Saisie des données'!E208","v":0},{"$f":"'Saisie des données'!D9","v":0},{"$f":"'Saisie des données'!E9","v":0}]